{"text_format":"1","workbook":"xlsx","n_sheets":6,"sheets":["Home","Certificate","Demographic Summary","Summary","Database","divisions"],"not_rendered":{"charts":0,"images":4,"macros":1,"external_links":1,"defined_names":34,"comments":0,"pivot_tables":0},"unopened":[],"bounds":{"document_bytes":16777216,"sheet_cells":100000,"rows_first":2000,"rows_last":500,"rows_between":2000,"halvings":0,"cell_chars":16384,"cell_head_chars":4096},"cells_cut":0,"cells_raw":0,"read":"whole","date_system":"1900"}

{"sheet":"Home","index":0,"n_rows":59,"n_cols":5,"rows_kept":59,"cut":false,"hidden":false,"merged":[[0,0,0,4],[1,0,1,4],[3,0,3,4],[4,0,4,4],[5,0,6,4],[14,2,14,4],[15,2,15,4],[16,2,16,4],[45,1,46,4],[10,0,11,4]]}
["Republic of the Philippines"]
["Department of Education"]
[]
["e-SAT CONSOLIDATION FORM"]
["SY 2025-2028"]
["This tool was created to automate the consolidation of Electronic Self-Assessment Tool (e-SAT)  accomplished by teachers."]
[]
[]
[]
["PRIVACY NOTICE"]
["By using this tool, you are authorizing the personnel of the Department of Education to collect, process, retain, and dispose of your personal information in accordance with the Data Privacy Act of 2012."]
[]
[]
[]
[null,"Consolidation Level","School"]
[null,"School Name"]
[null,"School ID"]
[]
[null,"Auto-generate Certificates","YES","Certificate File Type","Single Excel file"]
[]
[]
[]
[]
[]
[]
[]
["INSTRUCTIONS"]
[]
["To consolidate all e-SAT of Beginning Towards Proficient, Proficient, Highly Proficient, and Distinguished Teachers per SCHOOL, do the following:"]
[]
["Step 1:","Download the eSAT Consol  file."]
[null,"DO NOT open in Google Drive/Onedrive. This is a macro-enabled file that requires to be opened in Microsoft Excel."]
[]
["Step 2:","Create a folder for your school containing all the e-SAT of teachers."]
[null,"Note: There should only be ONE consolidation per school."]
[null,"Move the eSAT Consol in the same location as the created folder (NOT inside the created folder)."]
[]
["Step 3:","Open the eSAT Consol."]
[null,"Enable Macros. Click Enable Editing and Enable Content."]
[]
["Step 4:","Click the button CONSOLIDATE e-SAT."]
[]
["Step 5:","SELECT the folder where the e-SAT files are stored. DO NOT double-click / open the folder."]
[null,"Click \"OK\" to start the process of consolidation."]
[]
["Step 6:","Wait for the consolidation to finish. Once the consolidation is done, a prompt will indicate that the files (e-SAT) were successfully consolidated. You may now explore the other sheets to view consolidated report of e-SAT data of teachers."]
[]
[]
["Step 7:","Save and rename your file by adding the name / initials of your school at the end."]
[null,"Example:  eSAT Consol-NEES"]
[]
[]
[]
["Developed by:"]
[]
["CHRISTINE ANNE M. PREPUSE"]
["School Principal, NEW ERA ELEMENTARY SCHOOL"]
["CSDO DASMARIÑAS"]
["christineanne.prepuse@deped.gov.ph"]

{"sheet":"Certificate","index":1,"n_rows":21,"n_cols":1,"rows_kept":21,"cut":false,"hidden":false,"merged":[[11,0,11,6],[0,0,0,6],[1,0,1,6],[2,0,2,6],[3,0,3,6],[4,0,4,6],[5,0,5,6],[6,0,6,6],[7,0,7,6],[8,0,8,6],[9,0,9,6],[10,0,10,6],[19,0,19,6],[20,0,20,6],[12,0,12,6],[14,0,14,6],[15,0,15,6],[16,0,16,6],[17,0,17,6],[18,0,18,6]]}
[]
["Republic of the Philippines"]
["Department of Education"]
["<REGION>"]
["<DIVISION OF>"]
["<NAME OF SCHOOL>"]
["<School Address>"]
[]
["Certificate of Completion"]
["This certificate is presented to "]
["<NAME OF TEACHER>"]
["for successfully completing the Electronic Self-Assessment Tool (e-SAT) for"]
["<Beginning towards Proficient/Proficient/Highly Proficient/Distinguished> Teacher for the School Year 2025-2028."]
[]
["Given this <nth day of month year> at"]
[{"$f":"A6&\", \"&A7&\".\"","v":"<NAME OF SCHOOL>, <School Address>."}]
[]
[]
[]
["<NAME>"]
["ICT Coordinator / School Head / Focal Person in charge of e-SAT"]

{"sheet":"Demographic Summary","index":2,"n_rows":66,"n_cols":5,"rows_kept":66,"cut":false,"hidden":true,"merged":[[14,1,14,4],[15,1,15,4],[8,0,8,4],[1,0,1,4],[2,0,2,4],[3,0,3,4],[4,0,4,4],[5,0,5,4],[7,0,7,4],[9,1,9,4],[10,1,10,4],[11,1,11,4],[12,1,12,4],[13,1,13,4]]}
["The Count column represents the number of personnel that participated in the survey."]
["Republic of the Philippines"]
["Department of Education"]
[]
[{"$f":"Home!C16","v":0}]
[{"$f":"Certificate!A7","v":"<School Address>"}]
[]
["DEMOGRAPHIC PROFILE"]
[]
["Region:",{"$f":"Database!L2","v":0}]
["Division:",{"$f":"Database!M2","v":0}]
["School ID:",{"$f":"Database!N2","v":0}]
["School Name:",{"$f":"Database!O2","v":0}]
["School Type:",{"$f":"Database!P2","v":0}]
["School Size:",{"$f":"Database!Q2","v":0}]
["Curricular Classification:",{"$f":"Database!R2","v":0}]
[]
["Career Stages","Count",null,"Level Taught","Count"]
["Beginning towards Proficient",{"$f":"COUNTIF(Database!D:D,\"BtP\")","v":0},null,"Kindergarten",{"$f":"COUNTIF(Database!J:J,$D19)","v":0}]
["Proficient",{"$f":"COUNTIF(Database!D:D,\"P\")","v":0},null,"Elementary",{"$f":"COUNTIF(Database!J:J,$D20)","v":0}]
["Highly Proficient",{"$f":"COUNTIF(Database!D:D,\"HP\")","v":0},null,"Junior High School",{"$f":"COUNTIF(Database!J:J,$D21)","v":0}]
["Distinguished",{"$f":"COUNTIF(Database!D:D,\"D\")","v":0},null,"Senior High School",{"$f":"COUNTIF(Database!J:J,$D22)","v":0}]
[]
["Position","Count",null,"Area of Specialization","Count"]
["Teacher I",{"$f":"COUNTIF(Database!C:C,$A25)","v":0},null,"English",{"$f":"COUNTIF(Database!S:S,\"TRUE\")","v":0}]
["Teacher II",{"$f":"COUNTIF(Database!C:C,$A26)","v":0},null,"Filipino",{"$f":"COUNTIF(Database!T:T,\"TRUE\")","v":0}]
["Teacher III",{"$f":"COUNTIF(Database!C:C,$A27)","v":0},null,"Mathematics",{"$f":"COUNTIF(Database!U:U,\"TRUE\")","v":0}]
["Teacher IV",{"$f":"COUNTIF(Database!C:C,$A28)","v":0},null,"General Science",{"$f":"COUNTIF(Database!V:V,\"TRUE\")","v":0}]
["Teacher V",{"$f":"COUNTIF(Database!C:C,$A29)","v":0},null,"Biology",{"$f":"COUNTIF(Database!W:W,\"TRUE\")","v":0}]
["Teacher VI",{"$f":"COUNTIF(Database!C:C,$A30)","v":0},null,"Chemistry",{"$f":"COUNTIF(Database!X:X,\"TRUE\")","v":0}]
["Teacher VII",{"$f":"COUNTIF(Database!C:C,$A31)","v":0},null,"Physics",{"$f":"COUNTIF(Database!Y:Y,\"TRUE\")","v":0}]
["Master Teacher I",{"$f":"COUNTIF(Database!C:C,$A32)","v":0},null,"Social Science",{"$f":"COUNTIF(Database!Z:Z,\"TRUE\")","v":0}]
["Master Teacher II",{"$f":"COUNTIF(Database!C:C,$A33)","v":0},null,"Early Childhood Education",{"$f":"COUNTIF(Database!AA:AA,\"TRUE\")","v":0}]
["Master Teacher III",{"$f":"COUNTIF(Database!C:C,$A34)","v":0},null,"Values Education",{"$f":"COUNTIF(Database!AB:AB,\"TRUE\")","v":0}]
["Master Teacher IV",{"$f":"COUNTIF(Database!C:C,$A35)","v":0},null,"SPED",{"$f":"COUNTIF(Database!AC:AC,\"TRUE\")","v":0}]
["Master Teacher V",{"$f":"COUNTIF(Database!C:C,$A36)","v":0},null,"Music",{"$f":"COUNTIF(Database!AD:AD,\"TRUE\")","v":0}]
[null,null,null,"Arts",{"$f":"COUNTIF(Database!AE:AE,\"TRUE\")","v":0}]
["Employment Status","Count",null,"PE",{"$f":"COUNTIF(Database!AF:AF,\"TRUE\")","v":0}]
["Regular Permanent",{"$f":"COUNTIF(Database!E:E,$A39)","v":0},null,"Health",{"$f":"COUNTIF(Database!AG:AG,\"TRUE\")","v":0}]
["Provisional",{"$f":"COUNTIF(Database!E:E,$A40)","v":0},null,"TLE/HE/TVL",{"$f":"COUNTIF(Database!AH:AH,\"TRUE\")","v":0}]
["Substitute",{"$f":"COUNTIF(Database!E:E,$A41)","v":0},null,"Others",{"$f":"COUNTA(Database!AI:AI)-1","v":0}]
["Contractual",{"$f":"COUNTIF(Database!E:E,$A42)","v":0}]
[null,null,null,"Subjects Taught","Count"]
["Age","Count",null,"All Subjects",{"$f":"COUNTIF(Database!AJ:AJ,\"TRUE\")","v":0}]
["Under 25 years old",{"$f":"COUNTIF(Database!F:F,$A45)","v":0},null,"MTB-MLE",{"$f":"COUNTIF(Database!AK:AK,\"TRUE\")","v":0}]
["25-30",{"$f":"COUNTIF(Database!F:F,$A46)","v":0},null,"Madrasah ALIVE",{"$f":"COUNTIF(Database!AL:AL,\"TRUE\")","v":0}]
["31-35",{"$f":"COUNTIF(Database!F:F,$A47)","v":0},null,"Filipino",{"$f":"COUNTIF(Database!AM:AM,\"TRUE\")","v":0}]
["36-40",{"$f":"COUNTIF(Database!F:F,$A48)","v":0},null,"English",{"$f":"COUNTIF(Database!AN:AN,\"TRUE\")","v":0}]
["41-45",{"$f":"COUNTIF(Database!F:F,$A49)","v":0},null,"Mathematics",{"$f":"COUNTIF(Database!AO:AO,\"TRUE\")","v":0}]
["46-50",{"$f":"COUNTIF(Database!F:F,$A50)","v":0},null,"Science",{"$f":"COUNTIF(Database!AP:AP,\"TRUE\")","v":0}]
["51-55",{"$f":"COUNTIF(Database!F:F,$A51)","v":0},null,"Araling Panlipunan",{"$f":"COUNTIF(Database!AQ:AQ,\"TRUE\")","v":0}]
["Over 55 years old",{"$f":"COUNTIF(Database!F:F,$A52)","v":0},null,"GMRC / EsP",{"$f":"COUNTIF(Database!AR:AR,\"TRUE\")","v":0}]
[null,null,null,"MAPEH",{"$f":"COUNTIF(Database!AS:AS,\"TRUE\")","v":0}]
["Sex","Count",null,"Music and Arts",{"$f":"COUNTIF(Database!AT:AT,\"TRUE\")","v":0}]
["Male",{"$f":"COUNTIF(Database!G:G,$A55)","v":0},null,"PE and Health",{"$f":"COUNTIF(Database!AU:AU,\"TRUE\")","v":0}]
["Female",{"$f":"COUNTIF(Database!G:G,$A56)","v":0},null,"Makabansa",{"$f":"COUNTIF(Database!AV:AV,\"TRUE\")","v":0}]
[null,null,null,"Languages / Reading and Literacy",{"$f":"COUNTIF(Database!AW:AW,\"TRUE\")","v":0}]
["Total Number of Years in Teaching","Count",null,"TLE/EPP-HE",{"$f":"COUNTIF(Database!AX:AX,\"TRUE\")","v":0}]
["0-3 years",{"$f":"COUNTIF(Database!H:H,$A59)","v":0},null,"TLE/EPP-LE/Tech-Voc",{"$f":"COUNTIF(Database!AY:AY,\"TRUE\")","v":0}]
["4-10 years",{"$f":"COUNTIF(Database!H:H,$A60)","v":0},null,"ALS",{"$f":"COUNTIF(Database!AZ:AZ,\"TRUE\")","v":0}]
["More than 10 years",{"$f":"COUNTIF(Database!H:H,$A61)","v":0},null,"IPED",{"$f":"COUNTIF(Database!BA:BA,\"TRUE\")","v":0}]
[null,null,null,"Special Programs",{"$f":"COUNTIF(Database!BB:BB,\"TRUE\")","v":0}]
["Highest Degree Obtained","Count",null,"Others",{"$f":"COUNTA(Database!BC:BC)-1","v":0}]
["Bachelor's Degree",{"$f":"COUNTIF(Database!I:I,$A64)","v":0}]
["Master's Degree",{"$f":"COUNTIF(Database!I:I,$A65)","v":0}]
["Doctorate Degree",{"$f":"COUNTIF(Database!I:I,$A66)","v":0}]

{"sheet":"Summary","index":3,"n_rows":280,"n_cols":21,"rows_kept":280,"cut":false,"hidden":true,"merged":[[232,1,233,2],[232,3,233,15],[221,3,221,11],[222,3,222,11],[223,3,223,11],[224,1,228,2],[224,3,224,11],[224,13,228,13],[224,14,228,15],[225,3,225,11],[226,3,226,11],[227,3,227,11],[228,3,228,11],[264,1,268,2],[264,3,264,11],[264,13,268,13],[264,14,268,15],[265,3,265,11],[266,3,266,11],[267,3,267,11],[268,3,268,11],[259,1,263,2],[259,3,259,11],[259,13,263,13],[259,14,263,15],[260,3,260,11],[261,3,261,11],[262,3,262,11],[263,3,263,11],[254,1,258,2],[254,3,254,11],[254,13,258,13],[254,14,258,15],[255,3,255,11],[256,3,256,11],[257,3,257,11],[258,3,258,11],[249,1,253,2],[249,3,249,11],[249,13,253,13],[249,14,253,15],[250,3,250,11],[251,3,251,11],[252,3,252,11],[253,3,253,11],[244,1,248,2],[244,3,244,11],[244,13,248,13],[244,14,248,15],[245,3,245,11],[246,3,246,11],[247,3,247,11],[248,3,248,11],[239,1,243,2],[239,3,239,11],[239,13,243,13],[239,14,243,15],[240,3,240,11],[241,3,241,11],[242,3,242,11],[243,3,243,11],[234,1,238,2],[234,3,234,11],[234,13,238,13],[234,14,238,15],[235,3,235,11],[236,3,236,11],[237,3,237,11],[238,3,238,11],[208,2,208,11],[212,1,213,2],[212,3,213,15],[214,1,218,2],[214,3,214,11],[214,13,218,13],[214,14,218,15],[215,3,215,11],[216,3,216,11],[217,3,217,11],[218,3,218,11],[219,1,223,2],[219,3,219,11],[219,13,223,13],[219,14,223,15],[220,3,220,11],[205,2,205,11],[206,2,206,11],[202,2,202,11],[204,2,204,11],[190,2,190,11],[193,2,193,11],[194,2,194,11],[191,2,191,11],[192,2,192,11],[188,1,188,11],[188,12,188,13],[188,14,188,15],[169,2,169,11],[170,2,170,11],[199,2,199,11],[200,2,200,11],[196,2,196,11],[197,2,197,11],[185,2,185,11],[186,2,186,11],[181,2,181,11],[183,2,183,11],[178,2,178,11],[180,2,180,11],[167,2,167,11],[149,2,149,11],[150,2,150,11],[158,2,158,11],[168,2,168,11],[175,2,175,11],[176,2,176,11],[172,2,172,11],[173,2,173,11],[146,2,146,11],[147,2,147,11],[143,1,143,11],[155,2,155,11],[156,2,156,11],[143,12,143,13],[165,12,165,13],[165,14,165,15],[160,2,160,11],[162,2,162,11],[152,2,152,11],[154,2,154,11],[143,14,143,15],[145,2,145,11],[159,2,159,11],[163,2,163,11],[165,1,165,11],[127,2,127,11],[128,2,128,11],[124,2,124,11],[125,2,125,11],[133,2,133,11],[135,2,135,11],[130,2,130,11],[131,2,131,11],[139,2,139,11],[136,2,136,11],[137,2,137,11],[116,2,116,11],[117,2,117,11],[112,2,112,11],[114,2,114,11],[122,2,122,11],[123,2,123,11],[119,1,119,11],[119,12,119,13],[119,14,119,15],[121,2,121,11],[104,2,104,11],[100,2,100,11],[101,2,101,11],[109,2,109,11],[111,2,111,11],[106,2,106,11],[107,2,107,11],[91,2,91,11],[93,2,93,11],[98,2,98,11],[99,2,99,11],[94,2,94,11],[96,1,96,11],[96,14,96,15],[81,2,81,11],[103,2,103,11],[86,2,86,11],[87,2,87,11],[83,2,83,11],[85,2,85,11],[74,12,74,13],[74,14,74,15],[76,2,76,11],[89,2,89,11],[80,2,80,11],[90,2,90,11],[77,2,77,11],[78,2,78,11],[74,1,74,11],[55,2,55,11],[56,2,56,11],[53,2,53,11],[54,2,54,11],[96,12,96,13],[70,2,70,11],[61,2,61,11],[62,2,62,11],[50,12,50,13],[58,2,58,11],[59,2,59,11],[67,2,67,11],[68,2,68,11],[64,2,64,11],[66,2,66,11],[50,14,50,15],[31,2,31,11],[32,2,32,11],[50,1,50,11],[52,2,52,11],[29,2,29,11],[30,2,30,11],[37,2,37,11],[38,2,38,11],[34,2,34,11],[35,2,35,11],[47,2,47,11],[48,2,48,11],[43,2,43,11],[45,2,45,11],[40,2,40,11],[42,2,42,11],[21,2,21,11],[17,2,17,11],[18,2,18,11],[25,2,25,11],[27,1,27,11],[27,12,27,13],[27,14,27,15],[22,2,22,11],[24,2,24,11],[14,2,14,11],[16,2,16,11],[11,2,11,11],[12,2,12,11],[20,2,20,11],[0,1,0,15],[1,1,1,15],[8,2,8,11],[9,2,9,11],[4,1,4,15],[5,1,5,11],[5,12,5,13],[5,14,5,15],[7,2,7,11]]}
[null,"Electronic Self-Assessment Tool"]
[null,"SY 2025 - 2028"]
[]
[null,"BEGINNING TOWARDS PROFICIENT AND PROFICIENT TEACHERS"]
[]
[null,"INDICATORS - YEAR 1",null,null,null,null,null,null,null,null,null,null,"Level of Capability",null,"Priority for Development"]
[null,"Domain 1. Content Knowledge and Pedagogy"]
[null,"1.1.2","Applied knowledge of content within and across curriculum teaching areas",null,null,null,null,null,null,null,null,null,{"$f":"AVERAGE(INDIRECT(\"Database!\"&S8&\":\"&S8))","v":{"$error":"#DIV/0!"}},{"$f":"VLOOKUP(M8,leveldesc,2,1)","v":{"$error":"#DIV/0!"}},{"$f":"AVERAGE(INDIRECT(\"Database!\"&U8&\":\"&U8))","v":{"$error":"#DIV/0!"}},{"$f":"VLOOKUP(O8,leveldesc,2,1)","v":{"$error":"#DIV/0!"}},null,{"$f":"MATCH(\"BP Yr1 1.1.2 LC\",Database!1:1,0)","v":68},{"$f":"SUBSTITUTE(ADDRESS(1, R8, 4), \"1\", \"\")","v":"BP"},{"$f":"MATCH(\"BP Yr1 1.1.2 PD\",Database!1:1,0)","v":194},{"$f":"SUBSTITUTE(ADDRESS(1, T8, 4), \"1\", \"\")","v":"GL"}]
[null,"1.4.2","Used a range of teaching strategies that enhance learner achievement in literacy and numeracy skills",null,null,null,null,null,null,null,null,null,{"$f":"AVERAGE(INDIRECT(\"Database!\"&S9&\":\"&S9))","v":{"$error":"#DIV/0!"}},{"$f":"VLOOKUP(M9,leveldesc,2,1)","v":{"$error":"#DIV/0!"}},{"$f":"AVERAGE(INDIRECT(\"Database!\"&U9&\":\"&U9))","v":{"$error":"#DIV/0!"}},{"$f":"VLOOKUP(O9,leveldesc,2,1)","v":{"$error":"#DIV/0!"}},null,{"$f":"IF(C9<>\"\",R8+1,R8)","v":69},{"$f":"SUBSTITUTE(ADDRESS(1, R9, 4), \"1\", \"\")","v":"BQ"},{"$f":"IF(C9<>\"\",T8+1,T8)","v":195},{"$f":"SUBSTITUTE(ADDRESS(1, T9, 4), \"1\", \"\")","v":"GM"}]
[null,"1.5.2","Applied a range of teaching strategies to develop critical and creative thinking, as well as other higher-order thinking skills",null,null,null,null,null,null,null,null,null,{"$error":"#DIV/0!"},{"$f":"VLOOKUP(M10,leveldesc,2,1)","v":{"$error":"#DIV/0!"}},{"$error":"#DIV/0!"},{"$f":"VLOOKUP(O10,leveldesc,2,1)","v":{"$error":"#DIV/0!"}},null,{"$f":"IF(C10<>\"\",R9+1,R9)","v":70},{"$f":"SUBSTITUTE(ADDRESS(1, R10, 4), \"1\", \"\")","v":"BR"},{"$f":"IF(C10<>\"\",T9+1,T9)","v":196},{"$f":"SUBSTITUTE(ADDRESS(1, T10, 4), \"1\", \"\")","v":"GN"}]
[null,"Domain 2. Learning Environment",null,null,null,null,null,null,null,null,null,null,null,null,null,null,null,70,"BR",196,"GN"]
[null,"2.3.2","Managed classroom structure to engage learners, individually or in groups, in meaningful exploration, discovery and hands-on activities within a range of physical learning environments",null,null,null,null,null,null,null,null,null,{"$f":"AVERAGE(INDIRECT(\"Database!\"&S12&\":\"&S12))","v":{"$error":"#DIV/0!"}},{"$f":"VLOOKUP(M12,leveldesc,2,1)","v":{"$error":"#DIV/0!"}},{"$f":"AVERAGE(INDIRECT(\"Database!\"&U12&\":\"&U12))","v":{"$error":"#DIV/0!"}},{"$f":"VLOOKUP(O12,leveldesc,2,1)","v":{"$error":"#DIV/0!"}},null,71,"BS",197,"GO"]
[null,"2.6.2","Managed learner behavior constructively by applying positive and non-violent discipline to ensure learning- focused environments",null,null,null,null,null,null,null,null,null,{"$error":"#DIV/0!"},{"$f":"VLOOKUP(M13,leveldesc,2,1)","v":{"$error":"#DIV/0!"}},{"$error":"#DIV/0!"},{"$f":"VLOOKUP(O13,leveldesc,2,1)","v":{"$error":"#DIV/0!"}},null,72,"BT",198,"GP"]
[null,"Domain 3. Diversity of Learners",null,null,null,null,null,null,null,null,null,null,null,null,null,null,null,72,"BT",198,"GP"]
[null,"3.1.2","Used differentiated, developmentally appropriate learning experiences to address learners’ gender, needs, strengths, interests and experiences",null,null,null,null,null,null,null,null,null,{"$f":"AVERAGE(INDIRECT(\"Database!\"&S15&\":\"&S15))","v":{"$error":"#DIV/0!"}},{"$f":"VLOOKUP(M15,leveldesc,2,1)","v":{"$error":"#DIV/0!"}},{"$f":"AVERAGE(INDIRECT(\"Database!\"&U15&\":\"&U15))","v":{"$error":"#DIV/0!"}},{"$f":"VLOOKUP(O15,leveldesc,2,1)","v":{"$error":"#DIV/0!"}},null,73,"BU",199,"GQ"]
[null,"Domain 4. Curriculum and Planning",null,null,null,null,null,null,null,null,null,null,null,null,null,null,null,73,"BU",199,"GQ"]
[null,"4.1.2","Planned, managed and implemented developmentally sequenced teaching and learning processes to meet curriculum requirements and varied teaching contexts",null,null,null,null,null,null,null,null,null,{"$f":"AVERAGE(INDIRECT(\"Database!\"&S17&\":\"&S17))","v":{"$error":"#DIV/0!"}},{"$f":"VLOOKUP(M17,leveldesc,2,1)","v":{"$error":"#DIV/0!"}},{"$f":"AVERAGE(INDIRECT(\"Database!\"&U17&\":\"&U17))","v":{"$error":"#DIV/0!"}},{"$f":"VLOOKUP(O17,leveldesc,2,1)","v":{"$error":"#DIV/0!"}},null,74,"BV",200,"GR"]
[null,"4.4.2","Participated in collegial discussions that use teacher and learner feedback to  enrich teaching practice",null,null,null,null,null,null,null,null,null,{"$error":"#DIV/0!"},{"$f":"VLOOKUP(M18,leveldesc,2,1)","v":{"$error":"#DIV/0!"}},{"$error":"#DIV/0!"},{"$f":"VLOOKUP(O18,leveldesc,2,1)","v":{"$error":"#DIV/0!"}},null,75,"BW",201,"GS"]
[null,"4.5.2","Selected, developed, organized and used appropriate teaching and learning resources, including ICT, to address learning goals",null,null,null,null,null,null,null,null,null,{"$error":"#DIV/0!"},{"$f":"VLOOKUP(M19,leveldesc,2,1)","v":{"$error":"#DIV/0!"}},{"$error":"#DIV/0!"},{"$f":"VLOOKUP(O19,leveldesc,2,1)","v":{"$error":"#DIV/0!"}},null,76,"BX",202,"GT"]
[null,"Domain 5. Assessment and Reporting",null,null,null,null,null,null,null,null,null,null,null,null,null,null,null,76,"BX",202,"GT"]
[null,"5.1.2","Designed, selected, organized and used diagnostic, formative and summative assessment strategies consistent with curriculum requirements",null,null,null,null,null,null,null,null,null,{"$f":"AVERAGE(INDIRECT(\"Database!\"&S21&\":\"&S21))","v":{"$error":"#DIV/0!"}},{"$f":"VLOOKUP(M21,leveldesc,2,1)","v":{"$error":"#DIV/0!"}},{"$f":"AVERAGE(INDIRECT(\"Database!\"&U21&\":\"&U21))","v":{"$error":"#DIV/0!"}},{"$f":"VLOOKUP(O21,leveldesc,2,1)","v":{"$error":"#DIV/0!"}},null,77,"BY",203,"GU"]
[null,"5.2.2","Monitored and evaluated learner progress and achievement using learner attainment data",null,null,null,null,null,null,null,null,null,{"$error":"#DIV/0!"},{"$f":"VLOOKUP(M22,leveldesc,2,1)","v":{"$error":"#DIV/0!"}},{"$error":"#DIV/0!"},{"$f":"VLOOKUP(O22,leveldesc,2,1)","v":{"$error":"#DIV/0!"}},null,78,"BZ",204,"GV"]
[null,"5.4.2","Communicated promptly and clearly the learners’ needs, progress and achievement  to key stakeholders, including parents/guardians",null,null,null,null,null,null,null,null,null,{"$error":"#DIV/0!"},{"$f":"VLOOKUP(M23,leveldesc,2,1)","v":{"$error":"#DIV/0!"}},{"$error":"#DIV/0!"},{"$f":"VLOOKUP(O23,leveldesc,2,1)","v":{"$error":"#DIV/0!"}},null,79,"CA",205,"GW"]
[null,"Domain 7. Personal Growth and Professional Development",null,null,null,null,null,null,null,null,null,null,null,null,null,null,null,79,"CA",205,"GW"]
[null,"7.1.2","Applied a personal philosophy of teaching that is learner-centered",null,null,null,null,null,null,null,null,null,{"$f":"AVERAGE(INDIRECT(\"Database!\"&S25&\":\"&S25))","v":{"$error":"#DIV/0!"}},{"$f":"VLOOKUP(M25,leveldesc,2,1)","v":{"$error":"#DIV/0!"}},{"$f":"AVERAGE(INDIRECT(\"Database!\"&U25&\":\"&U25))","v":{"$error":"#DIV/0!"}},{"$f":"VLOOKUP(O25,leveldesc,2,1)","v":{"$error":"#DIV/0!"}},null,80,"CB",206,"GX"]
[null,"7.5.2","Set professional development goals based on the Philippine Professional Standards for Teachers",null,null,null,null,null,null,null,null,null,{"$error":"#DIV/0!"},{"$f":"VLOOKUP(M26,leveldesc,2,1)","v":{"$error":"#DIV/0!"}},{"$error":"#DIV/0!"},{"$f":"VLOOKUP(O26,leveldesc,2,1)","v":{"$error":"#DIV/0!"}},null,81,"CC",207,"GY"]
[null,null,null,null,null,null,null,null,null,null,null,null,null,null,null,null,null,81,"CC",207,"GY"]
[null,"INDICATORS - YEAR 2",null,null,null,null,null,null,null,null,null,null,"Level of Capability",null,"Priority for Development",null,null,81,"CC",207,"GY"]
[null,"Domain 1. Content Knowledge and Pedagogy",null,null,null,null,null,null,null,null,null,null,null,null,null,null,null,81,"CC",207,"GY"]
[null,"1.1.2","Applied knowledge of content within and across curriculum teaching areas",null,null,null,null,null,null,null,null,null,{"$f":"AVERAGE(INDIRECT(\"Database!\"&S30&\":\"&S30))","v":{"$error":"#DIV/0!"}},{"$f":"VLOOKUP(M30,leveldesc,2,1)","v":{"$error":"#DIV/0!"}},{"$f":"AVERAGE(INDIRECT(\"Database!\"&U30&\":\"&U30))","v":{"$error":"#DIV/0!"}},{"$f":"VLOOKUP(O30,leveldesc,2,1)","v":{"$error":"#DIV/0!"}},null,82,"CD",208,"GZ"]
[null,"1.4.2","Used a range of teaching strategies that enhance learner achievement in literacy and numeracy skills",null,null,null,null,null,null,null,null,null,{"$error":"#DIV/0!"},{"$f":"VLOOKUP(M31,leveldesc,2,1)","v":{"$error":"#DIV/0!"}},{"$error":"#DIV/0!"},{"$f":"VLOOKUP(O31,leveldesc,2,1)","v":{"$error":"#DIV/0!"}},null,83,"CE",209,"HA"]
[null,"1.5.2","Applied a range of teaching strategies to develop critical and creative thinking, as well as other higher-order thinking skills",null,null,null,null,null,null,null,null,null,{"$error":"#DIV/0!"},{"$f":"VLOOKUP(M32,leveldesc,2,1)","v":{"$error":"#DIV/0!"}},{"$error":"#DIV/0!"},{"$f":"VLOOKUP(O32,leveldesc,2,1)","v":{"$error":"#DIV/0!"}},null,84,"CF",210,"HB"]
[null,"1.6.2","Displayed proficient use of Mother Tongue, Filipino and English to facilitate teaching and learning",null,null,null,null,null,null,null,null,null,{"$error":"#DIV/0!"},{"$f":"VLOOKUP(M33,leveldesc,2,1)","v":{"$error":"#DIV/0!"}},{"$error":"#DIV/0!"},{"$f":"VLOOKUP(O33,leveldesc,2,1)","v":{"$error":"#DIV/0!"}},null,85,"CG",211,"HC"]
[null,"Domain 2. Learning Environment",null,null,null,null,null,null,null,null,null,null,null,null,null,null,null,85,"CG",211,"HC"]
[null,"2.1.2","Established safe and secure learning environments to enhance learning through the consistent implementation of policies, guidelines and procedures",null,null,null,null,null,null,null,null,null,{"$f":"AVERAGE(INDIRECT(\"Database!\"&S35&\":\"&S35))","v":{"$error":"#DIV/0!"}},{"$f":"VLOOKUP(M35,leveldesc,2,1)","v":{"$error":"#DIV/0!"}},{"$f":"AVERAGE(INDIRECT(\"Database!\"&U35&\":\"&U35))","v":{"$error":"#DIV/0!"}},{"$f":"VLOOKUP(O35,leveldesc,2,1)","v":{"$error":"#DIV/0!"}},null,86,"CH",212,"HD"]
[null,"2.2.2","Maintained learning environments that promote fairness, respect and care to encourage learning",null,null,null,null,null,null,null,null,null,{"$error":"#DIV/0!"},{"$f":"VLOOKUP(M36,leveldesc,2,1)","v":{"$error":"#DIV/0!"}},{"$error":"#DIV/0!"},{"$f":"VLOOKUP(O36,leveldesc,2,1)","v":{"$error":"#DIV/0!"}},null,87,"CI",213,"HE"]
[null,"Domain 3. Diversity of Learners",null,null,null,null,null,null,null,null,null,null,null,null,null,null,null,87,"CI",213,"HE"]
[null,"3.2.2","Established a learner- centered culture by using teaching strategies that respond to their linguistic, cultural, socioeconomic and religious backgrounds",null,null,null,null,null,null,null,null,null,{"$f":"AVERAGE(INDIRECT(\"Database!\"&S38&\":\"&S38))","v":{"$error":"#DIV/0!"}},{"$f":"VLOOKUP(M38,leveldesc,2,1)","v":{"$error":"#DIV/0!"}},{"$f":"AVERAGE(INDIRECT(\"Database!\"&U38&\":\"&U38))","v":{"$error":"#DIV/0!"}},{"$f":"VLOOKUP(O38,leveldesc,2,1)","v":{"$error":"#DIV/0!"}},null,88,"CJ",214,"HF"]
[null,"3.5.2","Adapted and used culturally appropriate teaching strategies to address the needs of learners from indigenous groups",null,null,null,null,null,null,null,null,null,{"$error":"#DIV/0!"},{"$f":"VLOOKUP(M39,leveldesc,2,1)","v":{"$error":"#DIV/0!"}},{"$error":"#DIV/0!"},{"$f":"VLOOKUP(O39,leveldesc,2,1)","v":{"$error":"#DIV/0!"}},null,89,"CK",215,"HG"]
[null,"Domain 4. Curriculum and Planning",null,null,null,null,null,null,null,null,null,null,null,null,null,null,null,89,"CK",215,"HG"]
[null,"4.2.2","Set achievable and appropriate learning outcomes that are aligned with learning competencies",null,null,null,null,null,null,null,null,null,{"$f":"AVERAGE(INDIRECT(\"Database!\"&S41&\":\"&S41))","v":{"$error":"#DIV/0!"}},{"$f":"VLOOKUP(M41,leveldesc,2,1)","v":{"$error":"#DIV/0!"}},{"$f":"AVERAGE(INDIRECT(\"Database!\"&U41&\":\"&U41))","v":{"$error":"#DIV/0!"}},{"$f":"VLOOKUP(O41,leveldesc,2,1)","v":{"$error":"#DIV/0!"}},null,90,"CL",216,"HH"]
[null,"Domain 5. Assessment and Reporting",null,null,null,null,null,null,null,null,null,null,null,null,null,null,null,90,"CL",216,"HH"]
[null,"5.3.2","Used strategies for providing timely, accurate and constructive feedback to improve learner performance",null,null,null,null,null,null,null,null,null,{"$f":"AVERAGE(INDIRECT(\"Database!\"&S43&\":\"&S43))","v":{"$error":"#DIV/0!"}},{"$f":"VLOOKUP(M43,leveldesc,2,1)","v":{"$error":"#DIV/0!"}},{"$f":"AVERAGE(INDIRECT(\"Database!\"&U43&\":\"&U43))","v":{"$error":"#DIV/0!"}},{"$f":"VLOOKUP(O43,leveldesc,2,1)","v":{"$error":"#DIV/0!"}},null,91,"CM",217,"HI"]
[null,"5.5.2","Utilized assessment data to inform the modification of teaching and learning practices and programs",null,null,null,null,null,null,null,null,null,{"$error":"#DIV/0!"},{"$f":"VLOOKUP(M44,leveldesc,2,1)","v":{"$error":"#DIV/0!"}},{"$error":"#DIV/0!"},{"$f":"VLOOKUP(O44,leveldesc,2,1)","v":{"$error":"#DIV/0!"}},null,92,"CN",218,"HJ"]
[null,"Domain 6. Community Linkages and Professional Engagement",null,null,null,null,null,null,null,null,null,null,null,null,null,null,null,92,"CN",218,"HJ"]
[null,"6.2.2","Built relationships with parents/ guardians and the wider school community to facilitate involvement in the educative process",null,null,null,null,null,null,null,null,null,{"$f":"AVERAGE(INDIRECT(\"Database!\"&S46&\":\"&S46))","v":{"$error":"#DIV/0!"}},{"$f":"VLOOKUP(M46,leveldesc,2,1)","v":{"$error":"#DIV/0!"}},{"$f":"AVERAGE(INDIRECT(\"Database!\"&U46&\":\"&U46))","v":{"$error":"#DIV/0!"}},{"$f":"VLOOKUP(O46,leveldesc,2,1)","v":{"$error":"#DIV/0!"}},null,93,"CO",219,"HK"]
[null,"Domain 7. Personal Growth and Professional Development",null,null,null,null,null,null,null,null,null,null,null,null,null,null,null,93,"CO",219,"HK"]
[null,"7.3.2","Participated in professional networks to share knowledge and to enhance practice",null,null,null,null,null,null,null,null,null,{"$f":"AVERAGE(INDIRECT(\"Database!\"&S48&\":\"&S48))","v":{"$error":"#DIV/0!"}},{"$f":"VLOOKUP(M48,leveldesc,2,1)","v":{"$error":"#DIV/0!"}},{"$f":"AVERAGE(INDIRECT(\"Database!\"&U48&\":\"&U48))","v":{"$error":"#DIV/0!"}},{"$f":"VLOOKUP(O48,leveldesc,2,1)","v":{"$error":"#DIV/0!"}},null,94,"CP",220,"HL"]
[null,"7.4.2","Developed a personal improvement plan based on reflection of one’s practice and ongoing professional learning",null,null,null,null,null,null,null,null,null,{"$error":"#DIV/0!"},{"$f":"VLOOKUP(M49,leveldesc,2,1)","v":{"$error":"#DIV/0!"}},{"$error":"#DIV/0!"},{"$f":"VLOOKUP(O49,leveldesc,2,1)","v":{"$error":"#DIV/0!"}},null,95,"CQ",221,"HM"]
[null,null,null,null,null,null,null,null,null,null,null,null,null,null,null,null,null,95,"CQ",221,"HM"]
[null,"INDICATORS - YEAR 3",null,null,null,null,null,null,null,null,null,null,"Level of Capability",null,"Priority for Development",null,null,95,"CQ",221,"HM"]
[null,"Domain 1. Content Knowledge and Pedagogy",null,null,null,null,null,null,null,null,null,null,null,null,null,null,null,95,"CQ",221,"HM"]
[null,"1.1.2","Applied knowledge of content within and across curriculum teaching areas",null,null,null,null,null,null,null,null,null,{"$f":"AVERAGE(INDIRECT(\"Database!\"&S53&\":\"&S53))","v":{"$error":"#DIV/0!"}},{"$f":"VLOOKUP(M53,leveldesc,2,1)","v":{"$error":"#DIV/0!"}},{"$f":"AVERAGE(INDIRECT(\"Database!\"&U53&\":\"&U53))","v":{"$error":"#DIV/0!"}},{"$f":"VLOOKUP(O53,leveldesc,2,1)","v":{"$error":"#DIV/0!"}},null,96,"CR",222,"HN"]
[null,"1.2.2","Used research-based knowledge and principles of teaching and learning to enhance professional practice",null,null,null,null,null,null,null,null,null,{"$error":"#DIV/0!"},{"$f":"VLOOKUP(M54,leveldesc,2,1)","v":{"$error":"#DIV/0!"}},{"$error":"#DIV/0!"},{"$f":"VLOOKUP(O54,leveldesc,2,1)","v":{"$error":"#DIV/0!"}},null,97,"CS",223,"HO"]
[null,"1.3.2","Ensured the positive use of ICT to facilitate the teaching and learning process",null,null,null,null,null,null,null,null,null,{"$error":"#DIV/0!"},{"$f":"VLOOKUP(M55,leveldesc,2,1)","v":{"$error":"#DIV/0!"}},{"$error":"#DIV/0!"},{"$f":"VLOOKUP(O55,leveldesc,2,1)","v":{"$error":"#DIV/0!"}},null,98,"CT",224,"HP"]
[null,"1.4.2","Used a range of teaching strategies that enhance learner achievement in literacy and numeracy skills",null,null,null,null,null,null,null,null,null,{"$error":"#DIV/0!"},{"$f":"VLOOKUP(M56,leveldesc,2,1)","v":{"$error":"#DIV/0!"}},{"$error":"#DIV/0!"},{"$f":"VLOOKUP(O56,leveldesc,2,1)","v":{"$error":"#DIV/0!"}},null,99,"CU",225,"HQ"]
[null,"1.7.2","Used effective verbal and non-verbal classroom communication strategies to support learner understanding, participation, engagement and achievement",null,null,null,null,null,null,null,null,null,{"$error":"#DIV/0!"},{"$f":"VLOOKUP(M57,leveldesc,2,1)","v":{"$error":"#DIV/0!"}},{"$error":"#DIV/0!"},{"$f":"VLOOKUP(O57,leveldesc,2,1)","v":{"$error":"#DIV/0!"}},null,100,"CV",226,"HR"]
[null,"Domain 2. Learning Environment",null,null,null,null,null,null,null,null,null,null,null,null,null,null,null,100,"CV",226,"HR"]
[null,"2.4.2","Maintained learning environments that nurture and inspire learners to participate, cooperate and collaborate in continued learning",null,null,null,null,null,null,null,null,null,{"$f":"AVERAGE(INDIRECT(\"Database!\"&S59&\":\"&S59))","v":{"$error":"#DIV/0!"}},{"$f":"VLOOKUP(M59,leveldesc,2,1)","v":{"$error":"#DIV/0!"}},{"$f":"AVERAGE(INDIRECT(\"Database!\"&U59&\":\"&U59))","v":{"$error":"#DIV/0!"}},{"$f":"VLOOKUP(O59,leveldesc,2,1)","v":{"$error":"#DIV/0!"}},null,101,"CW",227,"HS"]
[null,"2.5.2","Applied a range of successful strategies that maintain learning environments that motivate learners to work productively by assuming responsibility for their own learning",null,null,null,null,null,null,null,null,null,{"$error":"#DIV/0!"},{"$f":"VLOOKUP(M60,leveldesc,2,1)","v":{"$error":"#DIV/0!"}},{"$error":"#DIV/0!"},{"$f":"VLOOKUP(O60,leveldesc,2,1)","v":{"$error":"#DIV/0!"}},null,102,"CX",228,"HT"]
[null,"Domain 3. Diversity of Learners",null,null,null,null,null,null,null,null,null,null,null,null,null,null,null,102,"CX",228,"HT"]
[null,"3.3.2","Designed, adapted and implemented teaching strategies that are responsive to learners with disabilities, giftedness and talents",null,null,null,null,null,null,null,null,null,{"$f":"AVERAGE(INDIRECT(\"Database!\"&S62&\":\"&S62))","v":{"$error":"#DIV/0!"}},{"$f":"VLOOKUP(M62,leveldesc,2,1)","v":{"$error":"#DIV/0!"}},{"$f":"AVERAGE(INDIRECT(\"Database!\"&U62&\":\"&U62))","v":{"$error":"#DIV/0!"}},{"$f":"VLOOKUP(O62,leveldesc,2,1)","v":{"$error":"#DIV/0!"}},null,103,"CY",229,"HU"]
[null,"3.4.2","Planned and delivered teaching strategies that are responsive to the special educational needs of learners in difficult circumstances*, including: geographic isolation; chronic illness; displacement due to armed conflict, urban resettlement or disasters; child abuse and child labor practices",null,null,null,null,null,null,null,null,null,{"$error":"#DIV/0!"},{"$f":"VLOOKUP(M63,leveldesc,2,1)","v":{"$error":"#DIV/0!"}},{"$error":"#DIV/0!"},{"$f":"VLOOKUP(O63,leveldesc,2,1)","v":{"$error":"#DIV/0!"}},null,104,"CZ",230,"HV"]
[null,"Domain 4. Curriculum and Planning",null,null,null,null,null,null,null,null,null,null,null,null,null,null,null,104,"CZ",230,"HV"]
[null,"4.3.2","Adapted and implemented learning programs that ensure relevance and responsiveness to the needs of all learners",null,null,null,null,null,null,null,null,null,{"$f":"AVERAGE(INDIRECT(\"Database!\"&S65&\":\"&S65))","v":{"$error":"#DIV/0!"}},{"$f":"VLOOKUP(M65,leveldesc,2,1)","v":{"$error":"#DIV/0!"}},{"$f":"AVERAGE(INDIRECT(\"Database!\"&U65&\":\"&U65))","v":{"$error":"#DIV/0!"}},{"$f":"VLOOKUP(O65,leveldesc,2,1)","v":{"$error":"#DIV/0!"}},null,105,"DA",231,"HW"]
[null,"Domain 6. Community Linkages and Professional Engagement",null,null,null,null,null,null,null,null,null,null,null,null,null,null,null,105,"DA",231,"HW"]
[null,"6.1.2","Maintained learning environments that are responsive to community contexts",null,null,null,null,null,null,null,null,null,{"$f":"AVERAGE(INDIRECT(\"Database!\"&S67&\":\"&S67))","v":{"$error":"#DIV/0!"}},{"$f":"VLOOKUP(M67,leveldesc,2,1)","v":{"$error":"#DIV/0!"}},{"$f":"AVERAGE(INDIRECT(\"Database!\"&U67&\":\"&U67))","v":{"$error":"#DIV/0!"}},{"$f":"VLOOKUP(O67,leveldesc,2,1)","v":{"$error":"#DIV/0!"}},null,106,"DB",232,"HX"]
[null,"6.3.2","Reviewed regularly personal teaching practice using existing laws and regulations that apply to the teaching profession and the responsibilities specified in the Code of Ethics for Professional Teachers",null,null,null,null,null,null,null,null,null,{"$error":"#DIV/0!"},{"$f":"VLOOKUP(M68,leveldesc,2,1)","v":{"$error":"#DIV/0!"}},{"$error":"#DIV/0!"},{"$f":"VLOOKUP(O68,leveldesc,2,1)","v":{"$error":"#DIV/0!"}},null,107,"DC",233,"HY"]
[null,"6.4.2","Complied with and implemented school policies and procedures consistently to foster harmonious relationships with learners, parents, and other stakeholders",null,null,null,null,null,null,null,null,null,{"$error":"#DIV/0!"},{"$f":"VLOOKUP(M69,leveldesc,2,1)","v":{"$error":"#DIV/0!"}},{"$error":"#DIV/0!"},{"$f":"VLOOKUP(O69,leveldesc,2,1)","v":{"$error":"#DIV/0!"}},null,108,"DD",234,"HZ"]
[null,"Domain 7. Personal Growth and Professional Development",null,null,null,null,null,null,null,null,null,null,null,null,null,null,null,108,"DD",234,"HZ"]
[null,"7.2.2","Adopted practices that uphold the dignity of teaching as a profession by exhibiting qualities such as caring attitude, respect and integrity",null,null,null,null,null,null,null,null,null,{"$f":"AVERAGE(INDIRECT(\"Database!\"&S71&\":\"&S71))","v":{"$error":"#DIV/0!"}},{"$f":"VLOOKUP(M71,leveldesc,2,1)","v":{"$error":"#DIV/0!"}},{"$f":"AVERAGE(INDIRECT(\"Database!\"&U71&\":\"&U71))","v":{"$error":"#DIV/0!"}},{"$f":"VLOOKUP(O71,leveldesc,2,1)","v":{"$error":"#DIV/0!"}},null,109,"DE",235,"IA"]
[null,null,null,null,null,null,null,null,null,null,null,null,null,null,null,null,null,109,"DE",235,"IA"]
[null,"HIGHLY PROFICIENT TEACHERS",null,null,null,null,null,null,null,null,null,null,null,null,null,null,null,109,"DE",235,"IA"]
[null,null,null,null,null,null,null,null,null,null,null,null,null,null,null,null,null,{"$f":"IF(C74<>\"\",R73+1,R73)","v":109},{"$f":"SUBSTITUTE(ADDRESS(1, R74, 4), \"1\", \"\")","v":"DE"},{"$f":"IF(C74<>\"\",T73+1,T73)","v":235},{"$f":"SUBSTITUTE(ADDRESS(1, T74, 4), \"1\", \"\")","v":"IA"}]
[null,"INDICATORS - YEAR 1",null,null,null,null,null,null,null,null,null,null,"Level of Capability",null,"Priority for Development",null,null,109,"DE",235,"IA"]
[null,"Domain 1. Content Knowledge and Pedagogy",null,null,null,null,null,null,null,null,null,null,null,null,null,null,null,109,"DE",235,"IA"]
[null,"1.1.3","Modelled effective applications of content knowledge within and across curriculum teaching areas",null,null,null,null,null,null,null,null,null,{"$f":"AVERAGE(INDIRECT(\"Database!\"&S77&\":\"&S77))","v":{"$error":"#DIV/0!"}},{"$f":"VLOOKUP(M77,leveldesc,2,1)","v":{"$error":"#DIV/0!"}},{"$f":"AVERAGE(INDIRECT(\"Database!\"&U77&\":\"&U77))","v":{"$error":"#DIV/0!"}},{"$f":"VLOOKUP(O77,leveldesc,2,1)","v":{"$error":"#DIV/0!"}},null,110,"DF",236,"IB"]
[null,"1.4.3","Evaluated with colleagues the effectiveness of teaching strategies that promote learner achievement in literacy and numeracy",null,null,null,null,null,null,null,null,null,{"$error":"#DIV/0!"},{"$f":"VLOOKUP(M78,leveldesc,2,1)","v":{"$error":"#DIV/0!"}},{"$error":"#DIV/0!"},{"$f":"VLOOKUP(O78,leveldesc,2,1)","v":{"$error":"#DIV/0!"}},null,111,"DG",237,"IC"]
[null,"1.5.3","Developed and applied effective teaching strategies to promote critical and creative thinking, as well as other higher-order thinking skills",null,null,null,null,null,null,null,null,null,{"$error":"#DIV/0!"},{"$f":"VLOOKUP(M79,leveldesc,2,1)","v":{"$error":"#DIV/0!"}},{"$error":"#DIV/0!"},{"$f":"VLOOKUP(O79,leveldesc,2,1)","v":{"$error":"#DIV/0!"}},null,112,"DH",238,"ID"]
[null,"Domain 2. Learning Environment",null,null,null,null,null,null,null,null,null,null,null,null,null,null,null,112,"DH",238,"ID"]
[null,"2.3.3","Worked with colleagues to model and share effective techniques in the management of classroom structure to engage learners, individually or in groups, in meaningful exploration, discovery and hands-on activities within a range of physical learning environments",null,null,null,null,null,null,null,null,null,{"$f":"AVERAGE(INDIRECT(\"Database!\"&S81&\":\"&S81))","v":{"$error":"#DIV/0!"}},{"$f":"VLOOKUP(M81,leveldesc,2,1)","v":{"$error":"#DIV/0!"}},{"$f":"AVERAGE(INDIRECT(\"Database!\"&U81&\":\"&U81))","v":{"$error":"#DIV/0!"}},{"$f":"VLOOKUP(O81,leveldesc,2,1)","v":{"$error":"#DIV/0!"}},null,113,"DI",239,"IE"]
[null,"2.6.3","Exhibited effective and constructive behavior management skills by applying positive and non-violent discipline to ensure learning- focused environments",null,null,null,null,null,null,null,null,null,{"$error":"#DIV/0!"},{"$f":"VLOOKUP(M82,leveldesc,2,1)","v":{"$error":"#DIV/0!"}},{"$error":"#DIV/0!"},{"$f":"VLOOKUP(O82,leveldesc,2,1)","v":{"$error":"#DIV/0!"}},null,114,"DJ",240,"IF"]
[null,"Domain 3. Diversity of Learners",null,null,null,null,null,null,null,null,null,null,null,null,null,null,null,114,"DJ",240,"IF"]
[null,"3.1.3","Worked with colleagues to share differentiated, developmentally appropriate opportunities to address learners’ differences in gender, needs, strengths, interests and experiences",null,null,null,null,null,null,null,null,null,{"$f":"AVERAGE(INDIRECT(\"Database!\"&S84&\":\"&S84))","v":{"$error":"#DIV/0!"}},{"$f":"VLOOKUP(M84,leveldesc,2,1)","v":{"$error":"#DIV/0!"}},{"$f":"AVERAGE(INDIRECT(\"Database!\"&U84&\":\"&U84))","v":{"$error":"#DIV/0!"}},{"$f":"VLOOKUP(O84,leveldesc,2,1)","v":{"$error":"#DIV/0!"}},null,115,"DK",241,"IG"]
[null,"Domain 4. Curriculum and Planning",null,null,null,null,null,null,null,null,null,null,null,null,null,null,null,115,"DK",241,"IG"]
[null,"4.1.3","Developed and applied effective strategies in the planning and management of developmentally sequenced teaching and learning processes  to meet curriculum requirements and varied teaching\ncontexts",null,null,null,null,null,null,null,null,null,{"$f":"AVERAGE(INDIRECT(\"Database!\"&S86&\":\"&S86))","v":{"$error":"#DIV/0!"}},{"$f":"VLOOKUP(M86,leveldesc,2,1)","v":{"$error":"#DIV/0!"}},{"$f":"AVERAGE(INDIRECT(\"Database!\"&U86&\":\"&U86))","v":{"$error":"#DIV/0!"}},{"$f":"VLOOKUP(O86,leveldesc,2,1)","v":{"$error":"#DIV/0!"}},null,116,"DL",242,"IH"]
[null,"4.4.3","Reviewed with colleagues, teacher and learner feedback to plan, facilitate and enrich teaching practice",null,null,null,null,null,null,null,null,null,{"$error":"#DIV/0!"},{"$f":"VLOOKUP(M87,leveldesc,2,1)","v":{"$error":"#DIV/0!"}},{"$error":"#DIV/0!"},{"$f":"VLOOKUP(O87,leveldesc,2,1)","v":{"$error":"#DIV/0!"}},null,117,"DM",243,"II"]
[null,"4.5.3","Advised and guided colleagues  in the selection, organization, development and use of appropriate teaching and learning resources, including ICT, to address specific learning goals",null,null,null,null,null,null,null,null,null,{"$error":"#DIV/0!"},{"$f":"VLOOKUP(M88,leveldesc,2,1)","v":{"$error":"#DIV/0!"}},{"$error":"#DIV/0!"},{"$f":"VLOOKUP(O88,leveldesc,2,1)","v":{"$error":"#DIV/0!"}},null,118,"DN",244,"IJ"]
[null,"Domain 5. Assessment and Reporting",null,null,null,null,null,null,null,null,null,null,null,null,null,null,null,118,"DN",244,"IJ"]
[null,"5.1.3","Worked collaboratively with colleagues to review the design, selection, organization and use of a range of effective diagnostic, formative and summative assessment strategies consistent with curriculum requirements",null,null,null,null,null,null,null,null,null,{"$f":"AVERAGE(INDIRECT(\"Database!\"&S90&\":\"&S90))","v":{"$error":"#DIV/0!"}},{"$f":"VLOOKUP(M90,leveldesc,2,1)","v":{"$error":"#DIV/0!"}},{"$f":"AVERAGE(INDIRECT(\"Database!\"&U90&\":\"&U90))","v":{"$error":"#DIV/0!"}},{"$f":"VLOOKUP(O90,leveldesc,2,1)","v":{"$error":"#DIV/0!"}},null,119,"DO",245,"IK"]
[null,"5.2.3","Interpreted collaboratively monitoring and evaluation strategies of attainment data to support learner progress and achievement",null,null,null,null,null,null,null,null,null,{"$error":"#DIV/0!"},{"$f":"VLOOKUP(M91,leveldesc,2,1)","v":{"$error":"#DIV/0!"}},{"$error":"#DIV/0!"},{"$f":"VLOOKUP(O91,leveldesc,2,1)","v":{"$error":"#DIV/0!"}},null,120,"DP",246,"IL"]
[null,"5.4.3","Applied skills in the effective communication of learner needs, progress and achievement to key stakeholders, including parents/guardians",null,null,null,null,null,null,null,null,null,{"$error":"#DIV/0!"},{"$f":"VLOOKUP(M92,leveldesc,2,1)","v":{"$error":"#DIV/0!"}},{"$error":"#DIV/0!"},{"$f":"VLOOKUP(O92,leveldesc,2,1)","v":{"$error":"#DIV/0!"}},null,121,"DQ",247,"IM"]
[null,"Domain 7. Personal Growth and Professional Development",null,null,null,null,null,null,null,null,null,null,null,null,null,null,null,121,"DQ",247,"IM"]
[null,"7.1.3","Manifested a learner-centered teaching philosophy in various aspects of practice and support colleagues in enhancing their own learner-centered teaching philosophy",null,null,null,null,null,null,null,null,null,{"$f":"AVERAGE(INDIRECT(\"Database!\"&S94&\":\"&S94))","v":{"$error":"#DIV/0!"}},{"$f":"VLOOKUP(M94,leveldesc,2,1)","v":{"$error":"#DIV/0!"}},{"$f":"AVERAGE(INDIRECT(\"Database!\"&U94&\":\"&U94))","v":{"$error":"#DIV/0!"}},{"$f":"VLOOKUP(O94,leveldesc,2,1)","v":{"$error":"#DIV/0!"}},null,122,"DR",248,"IN"]
[null,"7.5.3","Reflected on the Philippine Professional Standards for Teachers to plan personal professional development goals and assist colleagues in planning and achieving their own goals",null,null,null,null,null,null,null,null,null,{"$error":"#DIV/0!"},{"$f":"VLOOKUP(M95,leveldesc,2,1)","v":{"$error":"#DIV/0!"}},{"$error":"#DIV/0!"},{"$f":"VLOOKUP(O95,leveldesc,2,1)","v":{"$error":"#DIV/0!"}},null,123,"DS",249,"IO"]
[null,null,null,null,null,null,null,null,null,null,null,null,null,null,null,null,null,123,"DS",249,"IO"]
[null,"INDICATORS - YEAR 2",null,null,null,null,null,null,null,null,null,null,"Level of Capability",null,"Priority for Development",null,null,123,"DS",249,"IO"]
[null,"Domain 1. Content Knowledge and Pedagogy",null,null,null,null,null,null,null,null,null,null,null,null,null,null,null,123,"DS",249,"IO"]
[null,"1.1.3","Modelled effective applications of content knowledge within and across curriculum teaching areas",null,null,null,null,null,null,null,null,null,{"$f":"AVERAGE(INDIRECT(\"Database!\"&S99&\":\"&S99))","v":{"$error":"#DIV/0!"}},{"$f":"VLOOKUP(M99,leveldesc,2,1)","v":{"$error":"#DIV/0!"}},{"$f":"AVERAGE(INDIRECT(\"Database!\"&U99&\":\"&U99))","v":{"$error":"#DIV/0!"}},{"$f":"VLOOKUP(O99,leveldesc,2,1)","v":{"$error":"#DIV/0!"}},null,124,"DT",250,"IP"]
[null,"1.4.3","Evaluated with colleagues the effectiveness of teaching strategies that promote learner achievement in literacy and numeracy",null,null,null,null,null,null,null,null,null,{"$error":"#DIV/0!"},{"$f":"VLOOKUP(M100,leveldesc,2,1)","v":{"$error":"#DIV/0!"}},{"$error":"#DIV/0!"},{"$f":"VLOOKUP(O100,leveldesc,2,1)","v":{"$error":"#DIV/0!"}},null,125,"DU",251,"IQ"]
[null,"1.5.3","Developed and applied effective teaching strategies to promote critical and creative thinking, as well as other higher-order thinking skills",null,null,null,null,null,null,null,null,null,{"$error":"#DIV/0!"},{"$f":"VLOOKUP(M101,leveldesc,2,1)","v":{"$error":"#DIV/0!"}},{"$error":"#DIV/0!"},{"$f":"VLOOKUP(O101,leveldesc,2,1)","v":{"$error":"#DIV/0!"}},null,126,"DV",252,"IR"]
[null,"1.6.3","Modelled and supported colleagues in the proficient use of Mother Tongue, Filipino and English to improve teaching and learning, as well as to develop learners’ pride of their language, heritage and culture",null,null,null,null,null,null,null,null,null,{"$error":"#DIV/0!"},{"$f":"VLOOKUP(M102,leveldesc,2,1)","v":{"$error":"#DIV/0!"}},{"$error":"#DIV/0!"},{"$f":"VLOOKUP(O102,leveldesc,2,1)","v":{"$error":"#DIV/0!"}},null,127,"DW",253,"IS"]
[null,"Domain 2. Learning Environment",null,null,null,null,null,null,null,null,null,null,null,null,null,null,null,127,"DW",253,"IS"]
[null,"2.1.3","Exhibited effective strategies that ensure safe and secure learning environments to enhance learning through the consistent implementation of policies, guidelines and procedures",null,null,null,null,null,null,null,null,null,{"$f":"AVERAGE(INDIRECT(\"Database!\"&S104&\":\"&S104))","v":{"$error":"#DIV/0!"}},{"$f":"VLOOKUP(M104,leveldesc,2,1)","v":{"$error":"#DIV/0!"}},{"$f":"AVERAGE(INDIRECT(\"Database!\"&U104&\":\"&U104))","v":{"$error":"#DIV/0!"}},{"$f":"VLOOKUP(O104,leveldesc,2,1)","v":{"$error":"#DIV/0!"}},null,128,"DX",254,"IT"]
[null,"2.2.3","Exhibited effective practices to foster learning environments that promote fairness, respect and care to encourage learning",null,null,null,null,null,null,null,null,null,{"$error":"#DIV/0!"},{"$f":"VLOOKUP(M105,leveldesc,2,1)","v":{"$error":"#DIV/0!"}},{"$error":"#DIV/0!"},{"$f":"VLOOKUP(O105,leveldesc,2,1)","v":{"$error":"#DIV/0!"}},null,129,"DY",255,"IU"]
[null,"Domain 3. Diversity of Learners",null,null,null,null,null,null,null,null,null,null,null,null,null,null,null,129,"DY",255,"IU"]
[null,"3.2.3","Exhibited a learner-centered culture that promotes success by using effective teaching strategies that respond to their linguistic, cultural, socioeconomic and religious backgrounds",null,null,null,null,null,null,null,null,null,{"$f":"AVERAGE(INDIRECT(\"Database!\"&S107&\":\"&S107))","v":{"$error":"#DIV/0!"}},{"$f":"VLOOKUP(M107,leveldesc,2,1)","v":{"$error":"#DIV/0!"}},{"$f":"AVERAGE(INDIRECT(\"Database!\"&U107&\":\"&U107))","v":{"$error":"#DIV/0!"}},{"$f":"VLOOKUP(O107,leveldesc,2,1)","v":{"$error":"#DIV/0!"}},null,130,"DZ",256,"IV"]
[null,"3.5.3","Developed and applied teaching strategies to address effectively the needs of learners from indigenous groups",null,null,null,null,null,null,null,null,null,{"$error":"#DIV/0!"},{"$f":"VLOOKUP(M108,leveldesc,2,1)","v":{"$error":"#DIV/0!"}},{"$error":"#DIV/0!"},{"$f":"VLOOKUP(O108,leveldesc,2,1)","v":{"$error":"#DIV/0!"}},null,131,"EA",257,"IW"]
[null,"Domain 4. Curriculum and Planning",null,null,null,null,null,null,null,null,null,null,null,null,null,null,null,131,"EA",257,"IW"]
[null,"4.2.3","Modelled to colleagues the setting of achievable and challenging learning outcomes that are aligned with learning competencies to cultivate a culture of excellence for all learners",null,null,null,null,null,null,null,null,null,{"$f":"AVERAGE(INDIRECT(\"Database!\"&S110&\":\"&S110))","v":{"$error":"#DIV/0!"}},{"$f":"VLOOKUP(M110,leveldesc,2,1)","v":{"$error":"#DIV/0!"}},{"$f":"AVERAGE(INDIRECT(\"Database!\"&U110&\":\"&U110))","v":{"$error":"#DIV/0!"}},{"$f":"VLOOKUP(O110,leveldesc,2,1)","v":{"$error":"#DIV/0!"}},null,132,"EB",258,"IX"]
[null,"Domain 5. Assessment and Reporting",null,null,null,null,null,null,null,null,null,null,null,null,null,null,null,132,"EB",258,"IX"]
[null,"5.3.3","Used effective strategies for providing timely, accurate and constructive feedback to encourage learners to reflect on and improve their own learning",null,null,null,null,null,null,null,null,null,{"$f":"AVERAGE(INDIRECT(\"Database!\"&S112&\":\"&S112))","v":{"$error":"#DIV/0!"}},{"$f":"VLOOKUP(M112,leveldesc,2,1)","v":{"$error":"#DIV/0!"}},{"$f":"AVERAGE(INDIRECT(\"Database!\"&U112&\":\"&U112))","v":{"$error":"#DIV/0!"}},{"$f":"VLOOKUP(O112,leveldesc,2,1)","v":{"$error":"#DIV/0!"}},null,133,"EC",259,"IY"]
[null,"5.5.3","Worked collaboratively with colleagues to analyze and utilize assessment data to modify practices and programs to further support learner progress and achievement",null,null,null,null,null,null,null,null,null,{"$error":"#DIV/0!"},{"$f":"VLOOKUP(M113,leveldesc,2,1)","v":{"$error":"#DIV/0!"}},{"$error":"#DIV/0!"},{"$f":"VLOOKUP(O113,leveldesc,2,1)","v":{"$error":"#DIV/0!"}},null,134,"ED",260,"IZ"]
[null,"Domain 6. Community Linkages and Professional Engagement",null,null,null,null,null,null,null,null,null,null,null,null,null,null,null,134,"ED",260,"IZ"]
[null,"6.2.3","Guided colleagues to strengthen relationships with parents/ guardians and the wider school community to maximize their involvement in the educative process",null,null,null,null,null,null,null,null,null,{"$f":"AVERAGE(INDIRECT(\"Database!\"&S115&\":\"&S115))","v":{"$error":"#DIV/0!"}},{"$f":"VLOOKUP(M115,leveldesc,2,1)","v":{"$error":"#DIV/0!"}},{"$f":"AVERAGE(INDIRECT(\"Database!\"&U115&\":\"&U115))","v":{"$error":"#DIV/0!"}},{"$f":"VLOOKUP(O115,leveldesc,2,1)","v":{"$error":"#DIV/0!"}},null,135,"EE",261,"JA"]
[null,"Domain 7. Personal Growth and Professional Development",null,null,null,null,null,null,null,null,null,null,null,null,null,null,null,135,"EE",261,"JA"]
[null,"7.3.3","Contributed actively to professional networks within and between schools to improve knowledge and to enhance practice",null,null,null,null,null,null,null,null,null,{"$f":"AVERAGE(INDIRECT(\"Database!\"&S117&\":\"&S117))","v":{"$error":"#DIV/0!"}},{"$f":"VLOOKUP(M117,leveldesc,2,1)","v":{"$error":"#DIV/0!"}},{"$f":"AVERAGE(INDIRECT(\"Database!\"&U117&\":\"&U117))","v":{"$error":"#DIV/0!"}},{"$f":"VLOOKUP(O117,leveldesc,2,1)","v":{"$error":"#DIV/0!"}},null,136,"EF",262,"JB"]
[null,"7.4.3","Initiated professional reflections and promote learning opportunities with colleagues to improve practice",null,null,null,null,null,null,null,null,null,{"$error":"#DIV/0!"},{"$f":"VLOOKUP(M118,leveldesc,2,1)","v":{"$error":"#DIV/0!"}},{"$error":"#DIV/0!"},{"$f":"VLOOKUP(O118,leveldesc,2,1)","v":{"$error":"#DIV/0!"}},null,137,"EG",263,"JC"]
[null,null,null,null,null,null,null,null,null,null,null,null,null,null,null,null,null,137,"EG",263,"JC"]
[null,"INDICATORS - YEAR 3",null,null,null,null,null,null,null,null,null,null,"Level of Capability",null,"Priority for Development",null,null,137,"EG",263,"JC"]
[null,"Domain 1. Content Knowledge and Pedagogy",null,null,null,null,null,null,null,null,null,null,null,null,null,null,null,137,"EG",263,"JC"]
[null,"1.1.3","Modelled effective applications of content knowledge within and across curriculum teaching areas",null,null,null,null,null,null,null,null,null,{"$f":"AVERAGE(INDIRECT(\"Database!\"&S122&\":\"&S122))","v":{"$error":"#DIV/0!"}},{"$f":"VLOOKUP(M122,leveldesc,2,1)","v":{"$error":"#DIV/0!"}},{"$f":"AVERAGE(INDIRECT(\"Database!\"&U122&\":\"&U122))","v":{"$error":"#DIV/0!"}},{"$f":"VLOOKUP(O122,leveldesc,2,1)","v":{"$error":"#DIV/0!"}},null,138,"EH",264,"JD"]
[null,"1.2.3","Collaborated with colleagues in the conduct and   application of research to enrich knowledge of content and pedagogy",null,null,null,null,null,null,null,null,null,{"$error":"#DIV/0!"},{"$f":"VLOOKUP(M123,leveldesc,2,1)","v":{"$error":"#DIV/0!"}},{"$error":"#DIV/0!"},{"$f":"VLOOKUP(O123,leveldesc,2,1)","v":{"$error":"#DIV/0!"}},null,139,"EI",265,"JE"]
[null,"1.3.3","Promoted effective strategies in the positive use of ICT to facilitate the teaching and learning process",null,null,null,null,null,null,null,null,null,{"$error":"#DIV/0!"},{"$f":"VLOOKUP(M124,leveldesc,2,1)","v":{"$error":"#DIV/0!"}},{"$error":"#DIV/0!"},{"$f":"VLOOKUP(O124,leveldesc,2,1)","v":{"$error":"#DIV/0!"}},null,140,"EJ",266,"JF"]
[null,"1.4.3","Evaluated with colleagues the effectiveness of teaching strategies that promote learner achievement in literacy and numeracy",null,null,null,null,null,null,null,null,null,{"$error":"#DIV/0!"},{"$f":"VLOOKUP(M125,leveldesc,2,1)","v":{"$error":"#DIV/0!"}},{"$error":"#DIV/0!"},{"$f":"VLOOKUP(O125,leveldesc,2,1)","v":{"$error":"#DIV/0!"}},null,141,"EK",267,"JG"]
[null,"1.7.3","Displayed a wide range of effective verbal and non-verbal classroom communication strategies to support learner understanding, participation, engagement and achievement",null,null,null,null,null,null,null,null,null,{"$error":"#DIV/0!"},{"$f":"VLOOKUP(M126,leveldesc,2,1)","v":{"$error":"#DIV/0!"}},{"$error":"#DIV/0!"},{"$f":"VLOOKUP(O126,leveldesc,2,1)","v":{"$error":"#DIV/0!"}},null,142,"EL",268,"JH"]
[null,"Domain 2. Learning Environment",null,null,null,null,null,null,null,null,null,null,null,null,null,null,null,142,"EL",268,"JH"]
[null,"2.4.3","Worked with colleagues to share successful strategies that sustain supportive learning environments that nurture and inspire learners to participate, cooperate and collaborate in continued learning",null,null,null,null,null,null,null,null,null,{"$f":"AVERAGE(INDIRECT(\"Database!\"&S128&\":\"&S128))","v":{"$error":"#DIV/0!"}},{"$f":"VLOOKUP(M128,leveldesc,2,1)","v":{"$error":"#DIV/0!"}},{"$f":"AVERAGE(INDIRECT(\"Database!\"&U128&\":\"&U128))","v":{"$error":"#DIV/0!"}},{"$f":"VLOOKUP(O128,leveldesc,2,1)","v":{"$error":"#DIV/0!"}},null,143,"EM",269,"JI"]
[null,"2.5.3","Modelled successful strategies and supported colleagues in promoting learning environments that effectively motivate learners to work productively by assuming responsibility for their own learning",null,null,null,null,null,null,null,null,null,{"$error":"#DIV/0!"},{"$f":"VLOOKUP(M129,leveldesc,2,1)","v":{"$error":"#DIV/0!"}},{"$error":"#DIV/0!"},{"$f":"VLOOKUP(O129,leveldesc,2,1)","v":{"$error":"#DIV/0!"}},null,144,"EN",270,"JJ"]
[null,"Domain 3. Diversity of Learners",null,null,null,null,null,null,null,null,null,null,null,null,null,null,null,144,"EN",270,"JJ"]
[null,"3.3.3","Assisted colleagues to design, adapt and implement teaching strategies that are responsive to learners with disabilities, giftedness and talents",null,null,null,null,null,null,null,null,null,{"$f":"AVERAGE(INDIRECT(\"Database!\"&S131&\":\"&S131))","v":{"$error":"#DIV/0!"}},{"$f":"VLOOKUP(M131,leveldesc,2,1)","v":{"$error":"#DIV/0!"}},{"$f":"AVERAGE(INDIRECT(\"Database!\"&U131&\":\"&U131))","v":{"$error":"#DIV/0!"}},{"$f":"VLOOKUP(O131,leveldesc,2,1)","v":{"$error":"#DIV/0!"}},null,145,"EO",271,"JK"]
[null,"3.4.3","Evaluated with colleagues teaching strategies that are responsive to the special educational needs of learners in difficult circumstances*, including: geographic isolation; chronic illness; displacement due to armed conflict, urban resettlement or disasters; child abuse and child labor practices",null,null,null,null,null,null,null,null,null,{"$error":"#DIV/0!"},{"$f":"VLOOKUP(M132,leveldesc,2,1)","v":{"$error":"#DIV/0!"}},{"$error":"#DIV/0!"},{"$f":"VLOOKUP(O132,leveldesc,2,1)","v":{"$error":"#DIV/0!"}},null,146,"EP",272,"JL"]
[null,"Domain 4. Curriculum and Planning",null,null,null,null,null,null,null,null,null,null,null,null,null,null,null,146,"EP",272,"JL"]
[null,"4.3.3","Worked collaboratively with colleagues to evaluate the design of learning programs that develop the knowledge and skills of learners at different ability levels",null,null,null,null,null,null,null,null,null,{"$f":"AVERAGE(INDIRECT(\"Database!\"&S134&\":\"&S134))","v":{"$error":"#DIV/0!"}},{"$f":"VLOOKUP(M134,leveldesc,2,1)","v":{"$error":"#DIV/0!"}},{"$f":"AVERAGE(INDIRECT(\"Database!\"&U134&\":\"&U134))","v":{"$error":"#DIV/0!"}},{"$f":"VLOOKUP(O134,leveldesc,2,1)","v":{"$error":"#DIV/0!"}},null,147,"EQ",273,"JM"]
[null,"Domain 6. Community Linkages and Professional Engagement",null,null,null,null,null,null,null,null,null,null,null,null,null,null,null,147,"EQ",273,"JM"]
[null,"6.1.3","Reflected on and evaluated learning environments that are responsive to community contexts",null,null,null,null,null,null,null,null,null,{"$f":"AVERAGE(INDIRECT(\"Database!\"&S136&\":\"&S136))","v":{"$error":"#DIV/0!"}},{"$f":"VLOOKUP(M136,leveldesc,2,1)","v":{"$error":"#DIV/0!"}},{"$f":"AVERAGE(INDIRECT(\"Database!\"&U136&\":\"&U136))","v":{"$error":"#DIV/0!"}},{"$f":"VLOOKUP(O136,leveldesc,2,1)","v":{"$error":"#DIV/0!"}},null,148,"ER",274,"JN"]
[null,"6.3.3","Discussed with colleagues teaching and learning practices that apply existing codes, laws and regulations that apply to the teaching profession, and the responsibilities specified in the Code of Ethics for Professional Teachers",null,null,null,null,null,null,null,null,null,{"$error":"#DIV/0!"},{"$f":"VLOOKUP(M137,leveldesc,2,1)","v":{"$error":"#DIV/0!"}},{"$error":"#DIV/0!"},{"$f":"VLOOKUP(O137,leveldesc,2,1)","v":{"$error":"#DIV/0!"}},null,149,"ES",275,"JO"]
[null,"6.4.3","Exhibited commitment to and supported teachers in the implementation of school policies and procedures to foster harmonious relationships with learners, parents and other stakeholders",null,null,null,null,null,null,null,null,null,{"$error":"#DIV/0!"},{"$f":"VLOOKUP(M138,leveldesc,2,1)","v":{"$error":"#DIV/0!"}},{"$error":"#DIV/0!"},{"$f":"VLOOKUP(O138,leveldesc,2,1)","v":{"$error":"#DIV/0!"}},null,{"$f":"IF(C138<>\"\",R137+1,R137)","v":150},{"$f":"SUBSTITUTE(ADDRESS(1, R138, 4), \"1\", \"\")","v":"ET"},{"$f":"IF(C138<>\"\",T137+1,T137)","v":276},{"$f":"SUBSTITUTE(ADDRESS(1, T138, 4), \"1\", \"\")","v":"JP"}]
[null,"Domain 7. Personal Growth and Professional Development",null,null,null,null,null,null,null,null,null,null,null,null,null,null,null,150,"ET",276,"JP"]
[null,"7.2.3","Identified and utilized personal professional strengths to uphold the dignity of teaching as a profession to help build a positive teaching and learning culture within the school",null,null,null,null,null,null,null,null,null,{"$f":"AVERAGE(INDIRECT(\"Database!\"&S140&\":\"&S140))","v":{"$error":"#DIV/0!"}},{"$f":"VLOOKUP(M140,leveldesc,2,1)","v":{"$error":"#DIV/0!"}},{"$f":"AVERAGE(INDIRECT(\"Database!\"&U140&\":\"&U140))","v":{"$error":"#DIV/0!"}},{"$f":"VLOOKUP(O140,leveldesc,2,1)","v":{"$error":"#DIV/0!"}},null,151,"EU",277,"JQ"]
[null,null,null,null,null,null,null,null,null,null,null,null,null,null,null,null,null,151,"EU",277,"JQ"]
[null,"DISTINGUISHED TEACHERS",null,null,null,null,null,null,null,null,null,null,null,null,null,null,null,151,"EU",277,"JQ"]
[null,null,null,null,null,null,null,null,null,null,null,null,null,null,null,null,null,151,"EU",277,"JQ"]
[null,"INDICATORS - YEAR 1",null,null,null,null,null,null,null,null,null,null,"Level of Capability",null,"Priority for Development",null,null,151,"EU",277,"JQ"]
[null,"Domain 1. Content Knowledge and Pedagogy",null,null,null,null,null,null,null,null,null,null,null,null,null,null,null,151,"EU",277,"JQ"]
[null,"1.1.4","Modelled exemplary practice to improve the applications of content  knowledge within and across curriculum teaching areas.",null,null,null,null,null,null,null,null,null,{"$f":"AVERAGE(INDIRECT(\"Database!\"&S146&\":\"&S146))","v":{"$error":"#DIV/0!"}},{"$f":"VLOOKUP(M146,leveldesc,2,1)","v":{"$error":"#DIV/0!"}},{"$f":"AVERAGE(INDIRECT(\"Database!\"&U146&\":\"&U146))","v":{"$error":"#DIV/0!"}},{"$f":"VLOOKUP(O146,leveldesc,2,1)","v":{"$error":"#DIV/0!"}},null,152,"EV",278,"JR"]
[null,"1.4.4","Modelled a comprehensive selection of effective teaching strategies that promote learner achievement in literacy and numeracy.",null,null,null,null,null,null,null,null,null,{"$error":"#DIV/0!"},{"$f":"VLOOKUP(M147,leveldesc,2,1)","v":{"$error":"#DIV/0!"}},{"$error":"#DIV/0!"},{"$f":"VLOOKUP(O147,leveldesc,2,1)","v":{"$error":"#DIV/0!"}},null,153,"EW",279,"JS"]
[null,"1.5.4","Lead colleagues in reviewing, modifying and  expanding their range of  teaching strategies that promote critical and creative  thinking, as well as other higher-order thinking skills.",null,null,null,null,null,null,null,null,null,{"$error":"#DIV/0!"},{"$f":"VLOOKUP(M148,leveldesc,2,1)","v":{"$error":"#DIV/0!"}},{"$error":"#DIV/0!"},{"$f":"VLOOKUP(O148,leveldesc,2,1)","v":{"$error":"#DIV/0!"}},null,154,"EX",280,"JT"]
[null,"Domain 2. Learning Environment",null,null,null,null,null,null,null,null,null,null,null,null,null,null,null,154,"EX",280,"JT"]
[null,"2.3.4","Modelled exemplary practices in the management of classroom structure and  activities, and lead colleagues at the whole-school level to review and evaluate their practices.",null,null,null,null,null,null,null,null,null,{"$f":"AVERAGE(INDIRECT(\"Database!\"&S150&\":\"&S150))","v":{"$error":"#DIV/0!"}},{"$f":"VLOOKUP(M150,leveldesc,2,1)","v":{"$error":"#DIV/0!"}},{"$f":"AVERAGE(INDIRECT(\"Database!\"&U150&\":\"&U150))","v":{"$error":"#DIV/0!"}},{"$f":"VLOOKUP(O150,leveldesc,2,1)","v":{"$error":"#DIV/0!"}},null,155,"EY",281,"JU"]
[null,"2.6.4","Provided leadership in applying a wide range of strategies in the implementation of positive and  non-violent discipline policies/procedures to ensure  learning-focused environments.",null,null,null,null,null,null,null,null,null,{"$error":"#DIV/0!"},{"$f":"VLOOKUP(M151,leveldesc,2,1)","v":{"$error":"#DIV/0!"}},{"$error":"#DIV/0!"},{"$f":"VLOOKUP(O151,leveldesc,2,1)","v":{"$error":"#DIV/0!"}},null,156,"EZ",282,"JV"]
[null,"Domain 3. Diversity of Learners",null,null,null,null,null,null,null,null,null,null,null,null,null,null,null,156,"EZ",282,"JV"]
[null,"3.1.4","Lead colleagues to evaluate differentiated strategies to enrich teaching practices that address learners’  differences in gender, needs, strengths, interests and experiences.",null,null,null,null,null,null,null,null,null,{"$f":"AVERAGE(INDIRECT(\"Database!\"&S153&\":\"&S153))","v":{"$error":"#DIV/0!"}},{"$f":"VLOOKUP(M153,leveldesc,2,1)","v":{"$error":"#DIV/0!"}},{"$f":"AVERAGE(INDIRECT(\"Database!\"&U153&\":\"&U153))","v":{"$error":"#DIV/0!"}},{"$f":"VLOOKUP(O153,leveldesc,2,1)","v":{"$error":"#DIV/0!"}},null,157,"FA",283,"JW"]
[null,"Domain 4. Curriculum and Planning",null,null,null,null,null,null,null,null,null,null,null,null,null,null,null,157,"FA",283,"JW"]
[null,"4.1.4","Modelled exemplary  practice and lead colleagues in enhancing current practices in the planning and management of developmentally sequenced teaching and learning process.",null,null,null,null,null,null,null,null,null,{"$f":"AVERAGE(INDIRECT(\"Database!\"&S155&\":\"&S155))","v":{"$error":"#DIV/0!"}},{"$f":"VLOOKUP(M155,leveldesc,2,1)","v":{"$error":"#DIV/0!"}},{"$f":"AVERAGE(INDIRECT(\"Database!\"&U155&\":\"&U155))","v":{"$error":"#DIV/0!"}},{"$f":"VLOOKUP(O155,leveldesc,2,1)","v":{"$error":"#DIV/0!"}},null,158,"FB",284,"JX"]
[null,"4.4.4","Lead colleagues in professional discussions to plan and implement strategies that enrich teaching practice. ",null,null,null,null,null,null,null,null,null,{"$error":"#DIV/0!"},{"$f":"VLOOKUP(M156,leveldesc,2,1)","v":{"$error":"#DIV/0!"}},{"$error":"#DIV/0!"},{"$f":"VLOOKUP(O156,leveldesc,2,1)","v":{"$error":"#DIV/0!"}},null,159,"FC",285,"JY"]
[null,"4.5.4","Modelled exemplary skills and lead colleagues in the development and evaluation of  teaching and learning resources, including ICT, for  use within and beyond the school.",null,null,null,null,null,null,null,null,null,{"$error":"#DIV/0!"},{"$f":"VLOOKUP(M157,leveldesc,2,1)","v":{"$error":"#DIV/0!"}},{"$error":"#DIV/0!"},{"$f":"VLOOKUP(O157,leveldesc,2,1)","v":{"$error":"#DIV/0!"}},null,160,"FD",286,"JZ"]
[null,"Domain 5. Assessment and Reporting",null,null,null,null,null,null,null,null,null,null,null,null,null,null,null,160,"FD",286,"JZ"]
[null,"5.1.4","Lead initiatives in the  evaluation of assessment policies and guidelines that relate to the design, selection, organization and use of effective diagnostic, formative and summative assessment  strategies consistent with curriculum requirements.",null,null,null,null,null,null,null,null,null,{"$f":"AVERAGE(INDIRECT(\"Database!\"&S159&\":\"&S159))","v":{"$error":"#DIV/0!"}},{"$f":"VLOOKUP(M159,leveldesc,2,1)","v":{"$error":"#DIV/0!"}},{"$f":"AVERAGE(INDIRECT(\"Database!\"&U159&\":\"&U159))","v":{"$error":"#DIV/0!"}},{"$f":"VLOOKUP(O159,leveldesc,2,1)","v":{"$error":"#DIV/0!"}},null,161,"FE",287,"KA"]
[null,"5.2.4","Provided advice on, and mentor colleagues in the effective analysis and use of learner attainment data.",null,null,null,null,null,null,null,null,null,{"$error":"#DIV/0!"},{"$f":"VLOOKUP(M160,leveldesc,2,1)","v":{"$error":"#DIV/0!"}},{"$error":"#DIV/0!"},{"$f":"VLOOKUP(O160,leveldesc,2,1)","v":{"$error":"#DIV/0!"}},null,162,"FF",288,"KB"]
[null,"5.4.4","Shared with colleagues a wide range of strategies that ensure effective communication of learner needs, progress and  achievement to key stakeholders, including parents/guardians.",null,null,null,null,null,null,null,null,null,{"$error":"#DIV/0!"},{"$f":"VLOOKUP(M161,leveldesc,2,1)","v":{"$error":"#DIV/0!"}},{"$error":"#DIV/0!"},{"$f":"VLOOKUP(O161,leveldesc,2,1)","v":{"$error":"#DIV/0!"}},null,163,"FG",289,"KC"]
[null,"Domain 7. Personal Growth and Professional Development",null,null,null,null,null,null,null,null,null,null,null,null,null,null,null,163,"FG",289,"KC"]
[null,"7.1.4","Modelled a learner-centered teaching philosophy through teaching practices that stimulate colleagues to engage in further professional learning.",null,null,null,null,null,null,null,null,null,{"$f":"AVERAGE(INDIRECT(\"Database!\"&S163&\":\"&S163))","v":{"$error":"#DIV/0!"}},{"$f":"VLOOKUP(M163,leveldesc,2,1)","v":{"$error":"#DIV/0!"}},{"$f":"AVERAGE(INDIRECT(\"Database!\"&U163&\":\"&U163))","v":{"$error":"#DIV/0!"}},{"$f":"VLOOKUP(O163,leveldesc,2,1)","v":{"$error":"#DIV/0!"}},null,164,"FH",290,"KD"]
[null,"7.5.4","Lead reforms in enhancing professional development programs based on an in-depth knowledge and understanding of the Philippine Professional  Standards for Teachers.",null,null,null,null,null,null,null,null,null,{"$error":"#DIV/0!"},{"$f":"VLOOKUP(M164,leveldesc,2,1)","v":{"$error":"#DIV/0!"}},{"$error":"#DIV/0!"},{"$f":"VLOOKUP(O164,leveldesc,2,1)","v":{"$error":"#DIV/0!"}},null,165,"FI",291,"KE"]
[null,null,null,null,null,null,null,null,null,null,null,null,null,null,null,null,null,165,"FI",291,"KE"]
[null,"INDICATORS - YEAR 2",null,null,null,null,null,null,null,null,null,null,"Level of Capability",null,"Priority for Development",null,null,165,"FI",291,"KE"]
[null,"Domain 1. Content Knowledge and Pedagogy",null,null,null,null,null,null,null,null,null,null,null,null,null,null,null,165,"FI",291,"KE"]
[null,"1.1.4","Modelled exemplary practice to improve the applications of content  knowledge within and across curriculum teaching areas.",null,null,null,null,null,null,null,null,null,{"$f":"AVERAGE(INDIRECT(\"Database!\"&S168&\":\"&S168))","v":{"$error":"#DIV/0!"}},{"$f":"VLOOKUP(M168,leveldesc,2,1)","v":{"$error":"#DIV/0!"}},{"$f":"AVERAGE(INDIRECT(\"Database!\"&U168&\":\"&U168))","v":{"$error":"#DIV/0!"}},{"$f":"VLOOKUP(O168,leveldesc,2,1)","v":{"$error":"#DIV/0!"}},null,166,"FJ",292,"KF"]
[null,"1.4.4","Modelled a comprehensive selection of effective teaching strategies that promote learner achievement in literacy and numeracy.",null,null,null,null,null,null,null,null,null,{"$error":"#DIV/0!"},{"$f":"VLOOKUP(M169,leveldesc,2,1)","v":{"$error":"#DIV/0!"}},{"$error":"#DIV/0!"},{"$f":"VLOOKUP(O169,leveldesc,2,1)","v":{"$error":"#DIV/0!"}},null,167,"FK",293,"KG"]
[null,"1.5.4","Lead colleagues in reviewing, modifying and  expanding their range of  teaching strategies that promote critical and creative  thinking, as well as other higher-order thinking skills.",null,null,null,null,null,null,null,null,null,{"$error":"#DIV/0!"},{"$f":"VLOOKUP(M170,leveldesc,2,1)","v":{"$error":"#DIV/0!"}},{"$error":"#DIV/0!"},{"$f":"VLOOKUP(O170,leveldesc,2,1)","v":{"$error":"#DIV/0!"}},null,168,"FL",294,"KH"]
[null,"1.6.4","Showed exemplary skills in  and advocate the use of  Mother Tongue, Filipino and  English in teaching and learning to facilitate the learners’ language, cognitive  and academic development  and to foster pride of their  language, heritage and culture.",null,null,null,null,null,null,null,null,null,{"$error":"#DIV/0!"},{"$f":"VLOOKUP(M171,leveldesc,2,1)","v":{"$error":"#DIV/0!"}},{"$error":"#DIV/0!"},{"$f":"VLOOKUP(O171,leveldesc,2,1)","v":{"$error":"#DIV/0!"}},null,169,"FM",295,"KI"]
[null,"Domain 2. Learning Environment",null,null,null,null,null,null,null,null,null,null,null,null,null,null,null,169,"FM",295,"KI"]
[null,"2.1.4","Applied comprehensive  knowledge of and act as a resource person for, policies, guidelines and procedures that relate to the implementation of safe and secure learning environments for learners.",null,null,null,null,null,null,null,null,null,{"$f":"AVERAGE(INDIRECT(\"Database!\"&S173&\":\"&S173))","v":{"$error":"#DIV/0!"}},{"$f":"VLOOKUP(M173,leveldesc,2,1)","v":{"$error":"#DIV/0!"}},{"$f":"AVERAGE(INDIRECT(\"Database!\"&U173&\":\"&U173))","v":{"$error":"#DIV/0!"}},{"$f":"VLOOKUP(O173,leveldesc,2,1)","v":{"$error":"#DIV/0!"}},null,170,"FN",296,"KJ"]
[null,"2.2.4","Advocated and facilitate the use of effective practices to foster learning environments that promote fairness, respect and care to encourage learning.",null,null,null,null,null,null,null,null,null,{"$error":"#DIV/0!"},{"$f":"VLOOKUP(M174,leveldesc,2,1)","v":{"$error":"#DIV/0!"}},{"$error":"#DIV/0!"},{"$f":"VLOOKUP(O174,leveldesc,2,1)","v":{"$error":"#DIV/0!"}},null,171,"FO",297,"KK"]
[null,"Domain 3. Diversity of Learners",null,null,null,null,null,null,null,null,null,null,null,null,null,null,null,171,"FO",297,"KK"]
[null,"3.2.4","Modelled exemplary teaching practices that recognize and affirm diverse  linguistic, cultural, socio economic and religious backgrounds to promote learner success.",null,null,null,null,null,null,null,null,null,{"$f":"AVERAGE(INDIRECT(\"Database!\"&S176&\":\"&S176))","v":{"$error":"#DIV/0!"}},{"$f":"VLOOKUP(M176,leveldesc,2,1)","v":{"$error":"#DIV/0!"}},{"$f":"AVERAGE(INDIRECT(\"Database!\"&U176&\":\"&U176))","v":{"$error":"#DIV/0!"}},{"$f":"VLOOKUP(O176,leveldesc,2,1)","v":{"$error":"#DIV/0!"}},null,172,"FP",298,"KL"]
[null,"3.5.4","Showed comprehensive skills in delivering culturally appropriate teaching strategies  to address effectively the needs of learners from indigenous groups.",null,null,null,null,null,null,null,null,null,{"$error":"#DIV/0!"},{"$f":"VLOOKUP(M177,leveldesc,2,1)","v":{"$error":"#DIV/0!"}},{"$error":"#DIV/0!"},{"$f":"VLOOKUP(O177,leveldesc,2,1)","v":{"$error":"#DIV/0!"}},null,173,"FQ",299,"KM"]
[null,"Domain 4. Curriculum and Planning",null,null,null,null,null,null,null,null,null,null,null,null,null,null,null,173,"FQ",299,"KM"]
[null,"4.2.4","Exhibited high-level skills and lead in setting achievable and challenging learning outcomes that are aligned with learning competencies towards the cultivation of a culture of excellence for all.",null,null,null,null,null,null,null,null,null,{"$f":"AVERAGE(INDIRECT(\"Database!\"&S179&\":\"&S179))","v":{"$error":"#DIV/0!"}},{"$f":"VLOOKUP(M179,leveldesc,2,1)","v":{"$error":"#DIV/0!"}},{"$f":"AVERAGE(INDIRECT(\"Database!\"&U179&\":\"&U179))","v":{"$error":"#DIV/0!"}},{"$f":"VLOOKUP(O179,leveldesc,2,1)","v":{"$error":"#DIV/0!"}},null,174,"FR",300,"KN"]
[null,"Domain 5. Assessment and Reporting",null,null,null,null,null,null,null,null,null,null,null,null,null,null,null,174,"FR",300,"KN"]
[null,"5.3.4","Exhibited exemplary skills and lead initiatives to support  colleagues in applying strategies that effectively provide timely, accurate and constructive feedback to learners to improve learning  achievement.",null,null,null,null,null,null,null,null,null,{"$f":"AVERAGE(INDIRECT(\"Database!\"&S181&\":\"&S181))","v":{"$error":"#DIV/0!"}},{"$f":"VLOOKUP(M181,leveldesc,2,1)","v":{"$error":"#DIV/0!"}},{"$f":"AVERAGE(INDIRECT(\"Database!\"&U181&\":\"&U181))","v":{"$error":"#DIV/0!"}},{"$f":"VLOOKUP(O181,leveldesc,2,1)","v":{"$error":"#DIV/0!"}},null,175,"FS",301,"KO"]
[null,"5.5.4","Lead colleagues to explore, design and implement effective practices and programs using information derived from assessment data.",null,null,null,null,null,null,null,null,null,{"$error":"#DIV/0!"},{"$f":"VLOOKUP(M182,leveldesc,2,1)","v":{"$error":"#DIV/0!"}},{"$error":"#DIV/0!"},{"$f":"VLOOKUP(O182,leveldesc,2,1)","v":{"$error":"#DIV/0!"}},null,176,"FT",302,"KP"]
[null,"Domain 6. Community Linkages and Professional Engagement",null,null,null,null,null,null,null,null,null,null,null,null,null,null,null,176,"FT",302,"KP"]
[null,"6.2.4","Lead in consolidating networks that strengthen relationships with  parents/guardians and the wider school community to maximize their involvement in the educative process.",null,null,null,null,null,null,null,null,null,{"$f":"AVERAGE(INDIRECT(\"Database!\"&S184&\":\"&S184))","v":{"$error":"#DIV/0!"}},{"$f":"VLOOKUP(M184,leveldesc,2,1)","v":{"$error":"#DIV/0!"}},{"$f":"AVERAGE(INDIRECT(\"Database!\"&U184&\":\"&U184))","v":{"$error":"#DIV/0!"}},{"$f":"VLOOKUP(O184,leveldesc,2,1)","v":{"$error":"#DIV/0!"}},null,177,"FU",303,"KQ"]
[null,"Domain 7. Personal Growth and Professional Development",null,null,null,null,null,null,null,null,null,null,null,null,null,null,null,177,"FU",303,"KQ"]
[null,"7.3.4","Took a leadership role in supporting colleagues’ engagement with professional networks within and across schools to advance knowledge and practice in identified areas of need.",null,null,null,null,null,null,null,null,null,{"$f":"AVERAGE(INDIRECT(\"Database!\"&S186&\":\"&S186))","v":{"$error":"#DIV/0!"}},{"$f":"VLOOKUP(M186,leveldesc,2,1)","v":{"$error":"#DIV/0!"}},{"$f":"AVERAGE(INDIRECT(\"Database!\"&U186&\":\"&U186))","v":{"$error":"#DIV/0!"}},{"$f":"VLOOKUP(O186,leveldesc,2,1)","v":{"$error":"#DIV/0!"}},null,178,"FV",304,"KR"]
[null,"7.4.4","Demonstrated leadership within and across school contexts in critically evaluating practice and setting clearly defined targets for professional development. ",null,null,null,null,null,null,null,null,null,{"$error":"#DIV/0!"},{"$f":"VLOOKUP(M187,leveldesc,2,1)","v":{"$error":"#DIV/0!"}},{"$error":"#DIV/0!"},{"$f":"VLOOKUP(O187,leveldesc,2,1)","v":{"$error":"#DIV/0!"}},null,179,"FW",305,"KS"]
[null,null,null,null,null,null,null,null,null,null,null,null,null,null,null,null,null,179,"FW",305,"KS"]
[null,"INDICATORS - YEAR 3",null,null,null,null,null,null,null,null,null,null,"Level of Capability",null,"Priority for Development",null,null,179,"FW",305,"KS"]
[null,"Domain 1. Content Knowledge and Pedagogy",null,null,null,null,null,null,null,null,null,null,null,null,null,null,null,179,"FW",305,"KS"]
[null,"1.1.4","Modelled exemplary practice to improve the applications of content  knowledge within and across curriculum teaching areas.",null,null,null,null,null,null,null,null,null,{"$f":"AVERAGE(INDIRECT(\"Database!\"&S191&\":\"&S191))","v":{"$error":"#DIV/0!"}},{"$f":"VLOOKUP(M191,leveldesc,2,1)","v":{"$error":"#DIV/0!"}},{"$f":"AVERAGE(INDIRECT(\"Database!\"&U191&\":\"&U191))","v":{"$error":"#DIV/0!"}},{"$f":"VLOOKUP(O191,leveldesc,2,1)","v":{"$error":"#DIV/0!"}},null,180,"FX",306,"KT"]
[null,"1.2.4","Lead colleagues in the advancement of the art and science of teaching based on their comprehensive  knowledge of research and pedagogy.",null,null,null,null,null,null,null,null,null,{"$error":"#DIV/0!"},{"$f":"VLOOKUP(M192,leveldesc,2,1)","v":{"$error":"#DIV/0!"}},{"$error":"#DIV/0!"},{"$f":"VLOOKUP(O192,leveldesc,2,1)","v":{"$error":"#DIV/0!"}},null,181,"FY",307,"KU"]
[null,"1.3.4","Mentored colleagues in the implementation of policies to ensure the positive use of ICT within or beyond the school.",null,null,null,null,null,null,null,null,null,{"$error":"#DIV/0!"},{"$f":"VLOOKUP(M193,leveldesc,2,1)","v":{"$error":"#DIV/0!"}},{"$error":"#DIV/0!"},{"$f":"VLOOKUP(O193,leveldesc,2,1)","v":{"$error":"#DIV/0!"}},null,182,"FZ",308,"KV"]
[null,"1.4.4","Modelled a comprehensive selection of effective teaching strategies that promote learner achievement in literacy and numeracy.",null,null,null,null,null,null,null,null,null,{"$error":"#DIV/0!"},{"$f":"VLOOKUP(M194,leveldesc,2,1)","v":{"$error":"#DIV/0!"}},{"$error":"#DIV/0!"},{"$f":"VLOOKUP(O194,leveldesc,2,1)","v":{"$error":"#DIV/0!"}},null,183,"GA",309,"KW"]
[null,"1.7.4","Exhibited exemplary practice in the use of effective  verbal and non-verbal classroom communication strategies to support learner  understanding, participation, engagement and achievement  in different learning contexts.",null,null,null,null,null,null,null,null,null,{"$error":"#DIV/0!"},{"$f":"VLOOKUP(M195,leveldesc,2,1)","v":{"$error":"#DIV/0!"}},{"$error":"#DIV/0!"},{"$f":"VLOOKUP(O195,leveldesc,2,1)","v":{"$error":"#DIV/0!"}},null,184,"GB",310,"KX"]
[null,"Domain 2. Learning Environment",null,null,null,null,null,null,null,null,null,null,null,null,null,null,null,184,"GB",310,"KX"]
[null,"2.4.4","Facilitated processes to review the effectiveness of the school’s learning environment to nurture and inspire learner participation.",null,null,null,null,null,null,null,null,null,{"$f":"AVERAGE(INDIRECT(\"Database!\"&S197&\":\"&S197))","v":{"$error":"#DIV/0!"}},{"$f":"VLOOKUP(M197,leveldesc,2,1)","v":{"$error":"#DIV/0!"}},{"$f":"AVERAGE(INDIRECT(\"Database!\"&U197&\":\"&U197))","v":{"$error":"#DIV/0!"}},{"$f":"VLOOKUP(O197,leveldesc,2,1)","v":{"$error":"#DIV/0!"}},null,185,"GC",311,"KY"]
[null,"2.5.4","Lead and empower colleagues in promoting learning environments that effectively motivate learners to achieve quality outcomes by  assuming responsibility for their own learning.",null,null,null,null,null,null,null,null,null,{"$error":"#DIV/0!"},{"$f":"VLOOKUP(M198,leveldesc,2,1)","v":{"$error":"#DIV/0!"}},{"$error":"#DIV/0!"},{"$f":"VLOOKUP(O198,leveldesc,2,1)","v":{"$error":"#DIV/0!"}},null,186,"GD",312,"KZ"]
[null,"Domain 3. Diversity of Learners",null,null,null,null,null,null,null,null,null,null,null,null,null,null,null,186,"GD",312,"KZ"]
[null,"3.3.4","Lead colleagues in designing, adapting and implementing teaching strategies that are responsive to learners with disabilities, giftedness and talents.",null,null,null,null,null,null,null,null,null,{"$f":"AVERAGE(INDIRECT(\"Database!\"&S200&\":\"&S200))","v":{"$error":"#DIV/0!"}},{"$f":"VLOOKUP(M200,leveldesc,2,1)","v":{"$error":"#DIV/0!"}},{"$f":"AVERAGE(INDIRECT(\"Database!\"&U200&\":\"&U200))","v":{"$error":"#DIV/0!"}},{"$f":"VLOOKUP(O200,leveldesc,2,1)","v":{"$error":"#DIV/0!"}},null,187,"GE",313,"LA"]
[null,"3.4.4","Modelled a range of high level skills responsive to the  special educational needs of learners in difficult circumstances, including:  geographic isolation; chronic illness; displacement due to armed conflict, urban resettlement or disasters; child  abuse and child labor  \npractices.",null,null,null,null,null,null,null,null,null,{"$error":"#DIV/0!"},{"$f":"VLOOKUP(M201,leveldesc,2,1)","v":{"$error":"#DIV/0!"}},{"$error":"#DIV/0!"},{"$f":"VLOOKUP(O201,leveldesc,2,1)","v":{"$error":"#DIV/0!"}},null,188,"GF",314,"LB"]
[null,"Domain 4. Curriculum and Planning",null,null,null,null,null,null,null,null,null,null,null,null,null,null,null,{"$f":"IF(C202<>\"\",R201+1,R201)","v":188},{"$f":"SUBSTITUTE(ADDRESS(1, R202, 4), \"1\", \"\")","v":"GF"},{"$f":"IF(C202<>\"\",T201+1,T201)","v":314},{"$f":"SUBSTITUTE(ADDRESS(1, T202, 4), \"1\", \"\")","v":"LB"}]
[null,"4.3.4","Provided advice in the  design and implementation of  relevant and responsive learning programs that develop the knowledge and skills of learners at different ability levels.",null,null,null,null,null,null,null,null,null,{"$f":"AVERAGE(INDIRECT(\"Database!\"&S203&\":\"&S203))","v":{"$error":"#DIV/0!"}},{"$f":"VLOOKUP(M203,leveldesc,2,1)","v":{"$error":"#DIV/0!"}},{"$f":"AVERAGE(INDIRECT(\"Database!\"&U203&\":\"&U203))","v":{"$error":"#DIV/0!"}},{"$f":"VLOOKUP(O203,leveldesc,2,1)","v":{"$error":"#DIV/0!"}},null,189,"GG",315,"LC"]
[null,"Domain 6. Community Linkages and Professional Engagement",null,null,null,null,null,null,null,null,null,null,null,null,null,null,null,189,"GG",315,"LC"]
[null,"6.1.4","Modelled exemplary practice and empower colleagues to establish and maintain effective learning environments that are responsive to community contexts.",null,null,null,null,null,null,null,null,null,{"$f":"AVERAGE(INDIRECT(\"Database!\"&S205&\":\"&S205))","v":{"$error":"#DIV/0!"}},{"$f":"VLOOKUP(M205,leveldesc,2,1)","v":{"$error":"#DIV/0!"}},{"$f":"AVERAGE(INDIRECT(\"Database!\"&U205&\":\"&U205))","v":{"$error":"#DIV/0!"}},{"$f":"VLOOKUP(O205,leveldesc,2,1)","v":{"$error":"#DIV/0!"}},null,190,"GH",316,"LD"]
[null,"6.3.4","Lead colleagues in the regular review of existing codes, laws and regulations that apply to the teaching profession, and the responsibilities as specified in the Code of Ethics for Professional Teachers.",null,null,null,null,null,null,null,null,null,{"$error":"#DIV/0!"},{"$f":"VLOOKUP(M206,leveldesc,2,1)","v":{"$error":"#DIV/0!"}},{"$error":"#DIV/0!"},{"$f":"VLOOKUP(O206,leveldesc,2,1)","v":{"$error":"#DIV/0!"}},null,191,"GI",317,"LE"]
[null,"6.4.4","Evaluated existing school policies and procedures to make them more responsive to the needs of the learners, parents and other stakeholders.",null,null,null,null,null,null,null,null,null,{"$error":"#DIV/0!"},{"$f":"VLOOKUP(M207,leveldesc,2,1)","v":{"$error":"#DIV/0!"}},{"$error":"#DIV/0!"},{"$f":"VLOOKUP(O207,leveldesc,2,1)","v":{"$error":"#DIV/0!"}},null,192,"GJ",318,"LF"]
[null,"Domain 7. Personal Growth and Professional Development",null,null,null,null,null,null,null,null,null,null,null,null,null,null,null,192,"GJ",318,"LF"]
[null,"7.2.4","Acted as a role model and  advocate for upholding the  dignity of teaching as a profession to build a positive teaching and learning culture within and beyond the school. ",null,null,null,null,null,null,null,null,null,{"$f":"AVERAGE(INDIRECT(\"Database!\"&S209&\":\"&S209))","v":{"$error":"#DIV/0!"}},{"$f":"VLOOKUP(M209,leveldesc,2,1)","v":{"$error":"#DIV/0!"}},{"$f":"AVERAGE(INDIRECT(\"Database!\"&U209&\":\"&U209))","v":{"$error":"#DIV/0!"}},{"$f":"VLOOKUP(O209,leveldesc,2,1)","v":{"$error":"#DIV/0!"}},null,193,"GK",319,"LG"]
[]
[null,"PART II-A:  LEADERSHIP COMPETENCIES"]
[]
[null,"COMPETENCIES",null,"BEHAVIORAL INDICATORS"]
[]
[null,"LEADING PEOPLE",null,"1.   Uses basic persuasion techniques in a discussion or presentation e.g., staff mobilization, appeals to reason and/or emotions, uses data and examples, visual aids",null,null,null,null,null,null,null,null,{"$f":"ROUND(AVERAGE(INDIRECT(\"Database!\"&U215&\":\"&U215)),3)","v":{"$error":"#DIV/0!"}},{"$f":"ROUND(AVERAGE(M215:M219),3)","v":{"$error":"#DIV/0!"}},{"$f":"VLOOKUP(N215,core,2,1)","v":{"$error":"#DIV/0!"}},null,null,null,null,{"$f":"IF(D215<>\"\",T209+1,T209)","v":320},{"$f":"SUBSTITUTE(ADDRESS(1, T215, 4), \"1\", \"\")","v":"LH"}]
[null,null,null,"2.   Persuades, convinces or influences others, in order to have a specific impact or effect.",null,null,null,null,null,null,null,null,{"$f":"ROUND(AVERAGE(INDIRECT(\"Database!\"&U216&\":\"&U216)),3)","v":{"$error":"#DIV/0!"}},null,null,null,null,null,null,{"$f":"IF(D216<>\"\",T215+1,T215)","v":321},"LI"]
[null,null,null,"3.   “Sets a good example”, is a credible and respected leader; and demonstrates desired behavior.",null,null,null,null,null,null,null,null,{"$error":"#DIV/0!"},null,null,null,null,null,null,322,"LJ"]
[null,null,null,"4.   Forwards personal, professional and work unit needs and interests in an issue.",null,null,null,null,null,null,null,null,{"$error":"#DIV/0!"},null,null,null,null,null,null,323,"LK"]
[null,null,null,"5.   Assumes a pivotal role in promoting the development of an inspiring, relevant vision for the organization and influences others to share ownership of DepEd goals, in order to create an effective work environment.",null,null,null,null,null,null,null,null,{"$error":"#DIV/0!"},null,null,null,null,null,null,324,"LL"]
[null,"PEOPLE PERFORMANCE MANAGEMENT",null,"1.   Makes specific changes in the performance management system or in own work methods to improve performance (e.g. does something better, faster, at lower cost, more efficiently; improves quality, customer satisfaction, morale, revenues).",null,null,null,null,null,null,null,null,{"$f":"ROUND(AVERAGE(INDIRECT(\"Database!\"&U220&\":\"&U220)),3)","v":{"$error":"#DIV/0!"}},{"$f":"ROUND(AVERAGE(M220:M224),3)","v":{"$error":"#DIV/0!"}},{"$f":"VLOOKUP(N220,core,2,1)","v":{"$error":"#DIV/0!"}},null,null,null,null,325,"LM"]
[null,null,null,"2.   Sets performance standards and measures progress of employees based on office and department targets.",null,null,null,null,null,null,null,null,{"$error":"#DIV/0!"},null,null,null,null,null,null,326,"LN"]
[null,null,null,"3.   Provides feedback and technical assistance such as coaching for performance improvement and action planning.",null,null,null,null,null,null,null,null,{"$error":"#DIV/0!"},null,null,null,null,null,null,327,"LO"]
[null,null,null,"4.   States performance expectations clearly and checks understanding and commitment.",null,null,null,null,null,null,null,null,{"$error":"#DIV/0!"},null,null,null,null,null,null,328,"LP"]
[null,null,null,"5.   Performs all the stages of result-based performance management system supported by evidence and required documents/forms.",null,null,null,null,null,null,null,null,{"$error":"#DIV/0!"},null,null,null,null,null,null,329,"LQ"]
[null,"PEOPLE DEVELOPMENT",null,"1.   Improves the skills and effectiveness of individuals through employing a range of development strategies.",null,null,null,null,null,null,null,null,{"$error":"#DIV/0!"},{"$f":"ROUND(AVERAGE(M225:M229),3)","v":{"$error":"#DIV/0!"}},{"$f":"VLOOKUP(N225,core,2,1)","v":{"$error":"#DIV/0!"}},null,null,null,null,330,"LR"]
[null,null,null,"2.   Facilitates workforce effectiveness through coaching and motivating/developing people within a work environment that promotes mutual trust and respect.",null,null,null,null,null,null,null,null,{"$error":"#DIV/0!"},null,null,null,null,null,null,331,"LS"]
[null,null,null,"3.   Conceptualizes and implements learning interventions to meet identified training needs.",null,null,null,null,null,null,null,null,{"$error":"#DIV/0!"},null,null,null,null,null,null,332,"LT"]
[null,null,null,"4.   Does long-term coaching or training by arranging appropriate and helpful assignments, formal training, or other experiences for the purpose of supporting a person’s learning and development.",null,null,null,null,null,null,null,null,{"$error":"#DIV/0!"},null,null,null,null,null,null,333,"LU"]
[null,null,null,"5.   Cultivates a learning environment by structuring interactive experiences such as looking for future opportunities that are in support of achieving individual career goals.",null,null,null,null,null,null,null,null,{"$error":"#DIV/0!"},null,null,null,null,null,null,334,"LV"]
[]
[null,"CORE BEHAVIORAL COMPETENCIES"]
[]
[null,"COMPETENCIES",null,"BEHAVIORAL INDICATORS"]
[]
[null," SELF-MANAGEMENT",null,"Sets personal goals and directions, needs and development.",null,null,null,null,null,null,null,null,{"$f":"ROUND(AVERAGE(INDIRECT(\"Database!\"&U235&\":\"&U235)),3)","v":{"$error":"#DIV/0!"}},{"$f":"ROUND(AVERAGE(M235:M239),3)","v":{"$error":"#DIV/0!"}},{"$f":"VLOOKUP(N235,core,2,1)","v":{"$error":"#DIV/0!"}},null,null,null,null,{"$f":"IF(D235<>\"\",T229+1,T229)","v":335},{"$f":"SUBSTITUTE(ADDRESS(1, T235, 4), \"1\", \"\")","v":"LW"}]
[null,null,null,"Undertakes personal actions and behavior that are clear and purposive and takes into account personal goals and values congruent to that of the organization.",null,null,null,null,null,null,null,null,{"$f":"ROUND(AVERAGE(INDIRECT(\"Database!\"&U236&\":\"&U236)),3)","v":{"$error":"#DIV/0!"}},null,null,null,null,null,null,{"$f":"IF(D236<>\"\",T235+1,T235)","v":336},"LX"]
[null,null,null,"Displays emotional maturity and enthusiasm for and is challenged by higher goals.",null,null,null,null,null,null,null,null,{"$error":"#DIV/0!"},null,null,null,null,null,null,337,"LY"]
[null,null,null,"Prioritizes work tasks and schedules (through Gantt charts, checklists, etc.) to achieve goals.",null,null,null,null,null,null,null,null,{"$error":"#DIV/0!"},null,null,null,null,null,null,338,"LZ"]
[null,null,null,"Sets high quality, challenging, realistic goals for self and others.",null,null,null,null,null,null,null,null,{"$error":"#DIV/0!"},null,null,null,null,null,null,339,"MA"]
[null,"PROFESSIONALISM AND ETHICS",null,"Demonstrates the values and behavior enshrined in the Norms and Conduct and Ethical Standards for public officials and employees (RA 6713).",null,null,null,null,null,null,null,null,{"$error":"#DIV/0!"},{"$f":"ROUND(AVERAGE(M240:M244),3)","v":{"$error":"#DIV/0!"}},{"$f":"VLOOKUP(N240,core,2,1)","v":{"$error":"#DIV/0!"}},null,null,null,null,340,"MB"]
[null,null,null,"Practices ethical and professional behavior and conduct taking into account the impact of his/her actions and decisions.",null,null,null,null,null,null,null,null,{"$error":"#DIV/0!"},null,null,null,null,null,null,341,"MC"]
[null,null,null,"Maintains a professional image: being trustworthy, regularity of attendance and punctuality, good grooming and communication.",null,null,null,null,null,null,null,null,{"$error":"#DIV/0!"},null,null,null,null,null,null,342,"MD"]
[null,null,null,"Makes personal sacrifices to meet the organization's needs.",null,null,null,null,null,null,null,null,{"$error":"#DIV/0!"},null,null,null,null,null,null,343,"ME"]
[null,null,null,"Act with a sense of urgency and responsibility to meet the organization’s needs, improve system and help others improve their effectiveness.",null,null,null,null,null,null,null,null,{"$error":"#DIV/0!"},null,null,null,null,null,null,344,"MF"]
[null,"RESULTS FOCUS",null,"Achieves results with optimal use of time and resources most of the time.",null,null,null,null,null,null,null,null,{"$error":"#DIV/0!"},{"$f":"ROUND(AVERAGE(M245:M249),3)","v":{"$error":"#DIV/0!"}},{"$f":"VLOOKUP(N245,core,2,1)","v":{"$error":"#DIV/0!"}},null,null,null,null,345,"MG"]
[null,null,null,"Avoids rework, mistakes and wastage through effective work methods by placing organizational needs before personal needs.",null,null,null,null,null,null,null,null,{"$error":"#DIV/0!"},null,null,null,null,null,null,346,"MH"]
[null,null,null,"Delivers error-free outputs most of the time by conforming to standard operating procedures correctly and consistently. Able to produce very satisfactory quality work in terms of usefulness/acceptability and completeness with no supervision required.",null,null,null,null,null,null,null,null,{"$error":"#DIV/0!"},null,null,null,null,null,null,347,"MI"]
[null,null,null,"Expresses a desire to do better and may express frustration at waste or inefficiency. May focus on new or more precise ways of meeting goals set.",null,null,null,null,null,null,null,null,{"$error":"#DIV/0!"},null,null,null,null,null,null,348,"MJ"]
[null,null,null,"Makes specific changes in the system or in own work methods to improve performance. Examples may include doing something better, faster, at a lower cost, more efficiently, or improving quality, customer satisfaction, morale, without setting any specific goal.",null,null,null,null,null,null,null,null,{"$error":"#DIV/0!"},null,null,null,null,null,null,349,"MK"]
[null,"TEAMWORK",null,"Willingly does his/her share of responsibility.",null,null,null,null,null,null,null,null,{"$error":"#DIV/0!"},{"$f":"ROUND(AVERAGE(M250:M254),3)","v":{"$error":"#DIV/0!"}},{"$f":"VLOOKUP(N250,core,2,1)","v":{"$error":"#DIV/0!"}},null,null,null,null,350,"ML"]
[null,null,null,"Promotes collaboration and removes barrier to teamwork and goal accomplishment across the organization.",null,null,null,null,null,null,null,null,{"$error":"#DIV/0!"},null,null,null,null,null,null,351,"MM"]
[null,null,null,"Applies negotiation principles in arriving at win-win agreements.",null,null,null,null,null,null,null,null,{"$error":"#DIV/0!"},null,null,null,null,null,null,352,"MN"]
[null,null,null,"Drives consensus and team ownership of decisions.",null,null,null,null,null,null,null,null,{"$error":"#DIV/0!"},null,null,null,null,null,null,353,"MO"]
[null,null,null,"Works constructively and collaboratively with others and across organizations to accomplish organization goals and objectives.",null,null,null,null,null,null,null,null,{"$error":"#DIV/0!"},null,null,null,null,null,null,354,"MP"]
[null,"SERVICE ORIENTATION",null,"Can explain and articulate organizational directions, issues and problems.",null,null,null,null,null,null,null,null,{"$error":"#DIV/0!"},{"$f":"ROUND(AVERAGE(M255:M259),3)","v":{"$error":"#DIV/0!"}},{"$f":"VLOOKUP(N255,core,2,1)","v":{"$error":"#DIV/0!"}},null,null,null,null,355,"MQ"]
[null,null,null,"Takes personal responsibility for dealing with and/or correcting customer service issues and concerns.",null,null,null,null,null,null,null,null,{"$error":"#DIV/0!"},null,null,null,null,null,null,356,"MR"]
[null,null,null,"Initiates activities that promote advocacy for men and women empowerment.",null,null,null,null,null,null,null,null,{"$error":"#DIV/0!"},null,null,null,null,null,null,357,"MS"]
[null,null,null,"Participates in updating office vision, mission, mandates and strategies based on DepEd strategies and directions.",null,null,null,null,null,null,null,null,{"$error":"#DIV/0!"},null,null,null,null,null,null,358,"MT"]
[null,null,null,"Develops and adopts service improvement program through simplified procedures that will further enhance service delivery.",null,null,null,null,null,null,null,null,{"$error":"#DIV/0!"},null,null,null,null,null,null,359,"MU"]
[null,"INNOVATION",null,"Examines the root cause of problems and suggests effective solutions. Foster new ideas, processes and suggests better ways to do things (cost and/or operational efficiency).",null,null,null,null,null,null,null,null,{"$error":"#DIV/0!"},{"$f":"ROUND(AVERAGE(M260:M264),3)","v":{"$error":"#DIV/0!"}},{"$f":"VLOOKUP(N260,core,2,1)","v":{"$error":"#DIV/0!"}},null,null,null,null,360,"MV"]
[null,null,null,"Demonstrates an ability to think “beyond the box”. Continuously focuses on improving personal productivity to create higher value and results.",null,null,null,null,null,null,null,null,{"$error":"#DIV/0!"},null,null,null,null,null,null,361,"MW"]
[null,null,null,"Promotes a creative climate and inspires co-workers to develop original ideas or solutions.",null,null,null,null,null,null,null,null,{"$error":"#DIV/0!"},null,null,null,null,null,null,362,"MX"]
[null,null,null,"Translates creative thinking into tangible changes and solutions that improve the work unit and organization.",null,null,null,null,null,null,null,null,{"$error":"#DIV/0!"},null,null,null,null,null,null,363,"MY"]
[null,null,null,"Uses ingenious methods to accomplish responsibilities. Demonstrates resourcefulness and the ability to succeed with minimal resources.",null,null,null,null,null,null,null,null,{"$error":"#DIV/0!"},null,null,null,null,null,null,364,"MZ"]
[null,"GENDER SENSITIVITY",null,"Recognizes and respects individual differences.","1.   Recognizes and respects individual differences.",null,null,null,null,null,null,null,{"$error":"#DIV/0!"},{"$f":"ROUND(AVERAGE(M265:M269),3)","v":{"$error":"#DIV/0!"}},{"$f":"VLOOKUP(N265,core,2,1)","v":{"$error":"#DIV/0!"}},null,null,null,null,365,"NA"]
[null,null,null,"Does not discriminate persons on the basis of Sexual Orientation, Gender Identity, Gender Expression, and Sex Characteristics (SOGIESC).","2.   Does not discriminate persons on the basis of Sexual Orientation, Gender Identity, Gender Expression, and Sex Characteristics (SOGIESC).",null,null,null,null,null,null,null,{"$error":"#DIV/0!"},null,null,null,null,null,null,366,"NB"]
[null,null,null,"Promotes gender equality, diversity, and inclusion in the workplace.","3.   Promotes gender equality, diversity, and inclusion in the workplace.",null,null,null,null,null,null,null,{"$error":"#DIV/0!"},null,null,null,null,null,null,367,"NC"]
[null,null,null,"Has zero-tolerance to gender-biases, discriminatory and exclusionary behaviors and practices.","4.   Has zero-tolerance to gender-biases, discriminatory and exclusionary behaviors and practices.",null,null,null,null,null,null,null,{"$error":"#DIV/0!"},null,null,null,null,null,null,368,"ND"]
[null,null,null,"Taking affirmatice action to address gender inequalities.","5.   Taking affirmatice action to address gender inequalities.",null,null,null,null,null,null,null,{"$error":"#DIV/0!"},null,null,null,null,null,null,369,"NE"]
[null,null,null,null,null,null,null,null,null,null,null,null,null,null,null,null,null,1,"Poor"]
[null,null,null,null,null,null,null,null,null,null,null,null,null,null,null,null,null,1.5,"Unsatisfactory"]
[null,null,null,null,null,null,null,null,null,null,null,null,null,null,null,null,null,2.5,"Satisfactory"]
[null,null,null,null,null,null,null,null,null,null,null,null,null,null,null,null,null,3.5,"Very Satisfactory"]
[null,null,null,null,null,null,null,null,null,null,null,null,null,null,null,null,null,4.5,"Outstanding"]
[]
[]
[null,null,null,null,null,null,null,null,null,null,null,null,null,null,null,null,null,1,"Low"]
[null,null,null,null,null,null,null,null,null,null,null,null,null,null,null,null,null,2,"Moderate"]
[null,null,null,null,null,null,null,null,null,null,null,null,null,null,null,null,null,3,"High"]
[null,null,null,null,null,null,null,null,null,null,null,null,null,null,null,null,null,4,"Very High"]

{"sheet":"Database","index":4,"n_rows":1,"n_cols":369,"rows_kept":1,"cut":false,"hidden":true,"merged":[]}
["No.","Name of Employee","Position Title","Proficiency","Employment Status","Age","Sex","Total Number of Years in Teaching","Highest Degree Obtained","Level Taught","Grade Level Taught","Region","Division","School ID","School Name","School Type","School Size","Curricular Classification","Area: English","Area: Filipino","Area: Mathematics","Area: GENERAL SCIENCE","Area: Biology","Area: Chemistry","Area: Physics","Area: Social Science","Area: Early Childhood Education","Area: Values Education","Area: SPED","Area: Music","Area: Arts","Area: Physical Education","Area: Health","Area: TLE/HE/TVL","Area: Others","Subj. Taught: All Subjects","Subj. Taught: MTB-MLE","Subj. Taught: Madrasah ALIVE","Subj. Taught: Filipino","Subj. Taught: English","Subj. Taught: Mathematics","Subj. Taught: Science","Subj. Taught: Araling Panlipunan","Subj. Taught: GMRC / EsP","Subj. Taught: MAPEH","Subj. Taught: Music and Arts","Subj. Taught: PE and Health","Subj. Taught: Makabansa","Subj. Taught: Languages / Reading and Literacy","Subj. Taught: TLE/EPP-HE","Subj. Taught: TLE/EPP-LE/Tech-Voc","Subj. Taught: ALS","Subj. Taught: IPED","Subj. Taught: Special Programs","Subj. Taught: Others","Strand: ACAD-ABM","Strand: ACAD-HUMSS","Strand: ACAD-STEM","Strand: ACAD-General Academic","Strand: ACAD-Pre-Baccalaureate Maritime","Strand: TVL-Agri-Fishery","Strand: TVL-HE","Strand: TVL-ICT","Strand: TVL-Industrial Arts","Strand: TVL-Maritime","Strand: Sports","Strand: Arts & Design","BP Yr1 1.1.2 LC","BP Yr1 1.4.2 LC","BP Yr1 1.5.2 LC","BP Yr1 2.3.2 LC","BP Yr1 2.6.2 LC","BP Yr1 3.1.2 LC","BP Yr1 4.1.2 LC","BP Yr1 4.4.2 LC","BP Yr1 4.5.2 LC","BP Yr1 5.1.2 LC","BP Yr1 5.2.2 LC","BP Yr1 5.4.2 LC","BP Yr1 7.1.2 LC","BP Yr1 7.5.2 LC","BP Yr2 1.1.2 LC","BP Yr2 1.4.2 LC","BP Yr2 1.5.2 LC","BP Yr2 1.6.2 LC","BP Yr2 2.1.2 LC","BP Yr2 2.2.2 LC","BP Yr2 3.2.2 LC","BP Yr2 3.5.2 LC","BP Yr2 4.2.2 LC","BP Yr2 5.3.2 LC","BP Yr2 5.5.2 LC","BP Yr2 6.2.2 LC","BP Yr2 7.3.2 LC","BP Yr2 7.4.2 LC","BP Yr3 1.1.2 LC","BP Yr3 1.2.2 LC","BP Yr3 1.3.2 LC","BP Yr3 1.4.2 LC","BP Yr3 1.7.2 LC","BP Yr3 2.4.2 LC","BP Yr3 2.5.2 LC","BP Yr3 3.3.2 LC","BP Yr3 3.4.2 LC","BP Yr3 4.3.2 LC","BP Yr3 6.1.2 LC","BP Yr3 6.3.2 LC","BP Yr3 6.4.2 LC","BP Yr3 7.2.2 LC","HP Yr1 1.1.3 LC","HP Yr1 1.4.3 LC","HP Yr1 1.5.3 LC","HP Yr1 2.3.3 LC","HP Yr1 2.6.3 LC","HP Yr1 3.1.3 LC","HP Yr1 4.1.3 LC","HP Yr1 4.4.3 LC","HP Yr1 4.5.3 LC","HP Yr1 5.1.3 LC","HP Yr1 5.2.3 LC","HP Yr1 5.4.3 LC","HP Yr1 7.1.3 LC","HP Yr1 7.5.3 LC","HP Yr2 1.1.3 LC","HP Yr2 1.4.3 LC","HP Yr2 1.5.3 LC","HP Yr2 1.6.3 LC","HP Yr2 2.1.3 LC","HP Yr2 2.2.3 LC","HP Yr2 3.2.3 LC","HP Yr2 3.5.3 LC","HP Yr2 4.2.3 LC","HP Yr2 5.3.3 LC","HP Yr2 5.5.3 LC","HP Yr2 6.2.3 LC","HP Yr2 7.3.3 LC","HP Yr2 7.4.3 LC","HP Yr3 1.1.3 LC","HP Yr3 1.2.3 LC","HP Yr3 1.3.3 LC","HP Yr3 1.4.3 LC","HP Yr3 1.7.3 LC","HP Yr3 2.4.3 LC","HP Yr3 2.5.3 LC","HP Yr3 3.3.3 LC","HP Yr3 3.4.3 LC","HP Yr3 4.3.3 LC","HP Yr3 6.1.3 LC","HP Yr3 6.3.3 LC","HP Yr3 6.4.3 LC","HP Yr3 7.2.3 LC","D Yr1 1.1.4 LC","D Yr1 1.4.4 LC","D Yr1 1.5.4 LC","D Yr1 2.3.4 LC","D Yr1 2.6.4 LC","D Yr1 3.1.4 LC","D Yr1 4.1.4 LC","D Yr1 4.4.4 LC","D Yr1 4.5.4 LC","D Yr1 5.1.4 LC","D Yr1 5.2.4 LC","D Yr1 5.4.4 LC","D Yr1 7.1.4 LC","D Yr1 7.5.4 LC","D Yr2 1.1.4 LC","D Yr2 1.4.4 LC","D Yr2 1.5.4 LC","D Yr2 1.6.4 LC","D Yr2 2.1.4 LC","D Yr2 2.2.4 LC","D Yr2 3.2.4 LC","D Yr2 3.5.4 LC","D Yr2 4.2.4 LC","D Yr2 5.3.4 LC","D Yr2 5.5.4 LC","D Yr2 6.2.4 LC","D Yr2 7.3.4 LC","D Yr2 7.4.4 LC","D Yr3 1.1.4 LC","D Yr3 1.2.4 LC","D Yr3 1.3.4 LC","D Yr3 1.4.4 LC","D Yr3 1.7.4 LC","D Yr3 2.4.4 LC","D Yr3 2.5.4 LC","D Yr3 3.3.4 LC","D Yr3 3.4.4 LC","D Yr3 4.3.4 LC","D Yr3 6.1.4 LC","D Yr3 6.3.4 LC","D Yr3 6.4.4 LC","D Yr3 7.2.4 LC","BP Yr1 1.1.2 PD","BP Yr1 1.4.2 PD","BP Yr1 1.5.2 PD","BP Yr1 2.3.2 PD","BP Yr1 2.6.2 PD","BP Yr1 3.1.2 PD","BP Yr1 4.1.2 PD","BP Yr1 4.4.2 PD","BP Yr1 4.5.2 PD","BP Yr1 5.1.2 PD","BP Yr1 5.2.2 PD","BP Yr1 5.4.2 PD","BP Yr1 7.1.2 PD","BP Yr1 7.5.2 PD","BP Yr2 1.1.2 PD","BP Yr2 1.4.2 PD","BP Yr2 1.5.2 PD","BP Yr2 1.6.2 PD","BP Yr2 2.1.2 PD","BP Yr2 2.2.2 PD","BP Yr2 3.2.2 PD","BP Yr2 3.5.2 PD","BP Yr2 4.2.2 PD","BP Yr2 5.3.2 PD","BP Yr2 5.5.2 PD","BP Yr2 6.2.2 PD","BP Yr2 7.3.2 PD","BP Yr2 7.4.2 PD","BP Yr3 1.1.2 PD","BP Yr3 1.2.2 PD","BP Yr3 1.3.2 PD","BP Yr3 1.4.2 PD","BP Yr3 1.7.2 PD","BP Yr3 2.4.2 PD","BP Yr3 2.5.2 PD","BP Yr3 3.3.2 PD","BP Yr3 3.4.2 PD","BP Yr3 4.3.2 PD","BP Yr3 6.1.2 PD","BP Yr3 6.3.2 PD","BP Yr3 6.4.2 PD","BP Yr3 7.2.2 PD","HP Yr1 1.1.3 PD","HP Yr1 1.4.3 PD","HP Yr1 1.5.3 PD","HP Yr1 2.3.3 PD","HP Yr1 2.6.3 PD","HP Yr1 3.1.3 PD","HP Yr1 4.1.3 PD","HP Yr1 4.4.3 PD","HP Yr1 4.5.3 PD","HP Yr1 5.1.3 PD","HP Yr1 5.2.3 PD","HP Yr1 5.4.3 PD","HP Yr1 7.1.3 PD","HP Yr1 7.5.3 PD","HP Yr2 1.1.3 PD","HP Yr2 1.4.3 PD","HP Yr2 1.5.3 PD","HP Yr2 1.6.3 PD","HP Yr2 2.1.3 PD","HP Yr2 2.2.3 PD","HP Yr2 3.2.3 PD","HP Yr2 3.5.3 PD","HP Yr2 4.2.3 PD","HP Yr2 5.3.3 PD","HP Yr2 5.5.3 PD","HP Yr2 6.2.3 PD","HP Yr2 7.3.3 PD","HP Yr2 7.4.3 PD","HP Yr3 1.1.3 PD","HP Yr3 1.2.3 PD","HP Yr3 1.3.3 PD","HP Yr3 1.4.3 PD","HP Yr3 1.7.3 PD","HP Yr3 2.4.3 PD","HP Yr3 2.5.3 PD","HP Yr3 3.3.3 PD","HP Yr3 3.4.3 PD","HP Yr3 4.3.3 PD","HP Yr3 6.1.3 PD","HP Yr3 6.3.3 PD","HP Yr3 6.4.3 PD","HP Yr3 7.2.3 PD","D Yr1 1.1.4 PD","D Yr1 1.4.4 PD","D Yr1 1.5.4 PD","D Yr1 2.3.4 PD","D Yr1 2.6.4 PD","D Yr1 3.1.4 PD","D Yr1 4.1.4 PD","D Yr1 4.4.4 PD","D Yr1 4.5.4 PD","D Yr1 5.1.4 PD","D Yr1 5.2.4 PD","D Yr1 5.4.4 PD","D Yr1 7.1.4 PD","D Yr1 7.5.4 PD","D Yr2 1.1.4 PD","D Yr2 1.4.4 PD","D Yr2 1.5.4 PD","D Yr2 1.6.4 PD","D Yr2 2.1.4 PD","D Yr2 2.2.4 PD","D Yr2 3.2.4 PD","D Yr2 3.5.4 PD","D Yr2 4.2.4 PD","D Yr2 5.3.4 PD","D Yr2 5.5.4 PD","D Yr2 6.2.4 PD","D Yr2 7.3.4 PD","D Yr2 7.4.4 PD","D Yr3 1.1.4 PD","D Yr3 1.2.4 PD","D Yr3 1.3.4 PD","D Yr3 1.4.4 PD","D Yr3 1.7.4 PD","D Yr3 2.4.4 PD","D Yr3 2.5.4 PD","D Yr3 3.3.4 PD","D Yr3 3.4.4 PD","D Yr3 4.3.4 PD","D Yr3 6.1.4 PD","D Yr3 6.3.4 PD","D Yr3 6.4.4 PD","D Yr3 7.2.4 PD","LC-LP1","LC-LP2","LC-LP3","LC-LP4","LC-LP5","LC-PPM1","LC-PPM2","LC-PPM3","LC-PPM4","LC-PPM5","LC-PD1","LC-PD2","LC-PD3","LC-PD4","LC-PD5","SM1","SM2","SM3","SM4","SM5","PE1","PE2","PE3","PE4","PE5","RF1","RF2","RF3","RF4","RF5","TW1","TW2","TW3","TW4","TW5","SO1","SO2","SO3","SO4","SO5","I1","I2","I3","I4","I5","GS1","GS2","GS3","GS4","GS5"]

{"sheet":"divisions","index":5,"n_rows":224,"n_cols":9,"rows_kept":224,"cut":false,"hidden":true,"merged":[]}
[{"$f":"IFERROR(VLOOKUP(Home!C16,divisions!$E$2:$F$18,2,0),A2)","v":"A3"},"Region","Division",null,"Region (full)","Division Table Name",null,"References (for copy-paste as needed)"]
["A3","BARMM","Basilan",null,"Bangsamoro Autonomous Region in Muslim Mindanao (BARMM)","BARMM_divlist",null,"Bangsamoro Autonomous Region in Muslim Mindanao (BARMM)","BARMM_divlist"]
[null,"BARMM","Lamitan City",null,"Cordillera Administrative Region (CAR)","CAR_divlist",null,"Cordillera Administrative Region (CAR)","CAR_divlist"]
[null,"BARMM","Lanao del Sur I",null,"National Capital Region (NCR)","NCR_divlist",null,"National Capital Region (NCR)","NCR_divlist"]
[null,"BARMM","Lanao del Sur II",null,"I - Ilocos Region","RI_divlist",null,"I - Ilocos Region","RI_divlist"]
[null,"BARMM","Maguindanao I",null,"II - Cagayan Valley","RII_divlist",null,"II - Cagayan Valley","RII_divlist"]
[null,"BARMM","Maguindanao II",null,"III - Central Luzon","RIII_divlist",null,"III - Central Luzon","RIII_divlist"]
[null,"BARMM","Marawi City",null,"IV-A - CALABARZON","RIVA_divlist",null,"IV-A - CALABARZON","RIVA_divlist"]
[null,"BARMM","Sulu",null,"IV-B - MIMAROPA","RIVB_divlist",null,"IV-B - MIMAROPA","RIVB_divlist"]
[null,"BARMM","Tawi-Tawi",null,"V - Bicol Region","RV_divlist",null,"V - Bicol Region","RV_divlist"]
[null,"CAR","Abra",null,"VI - Western Visayas","RVI_divlist",null,"VI - Western Visayas","RVI_divlist"]
[null,"CAR","Apayao",null,"VII - Central Visayas","RVII_divlist",null,"VII - Central Visayas","RVII_divlist"]
[null,"CAR","Baguio City",null,"VIII - Eastern Visayas","RVIII_divlist",null,"VIII - Eastern Visayas","RVIII_divlist"]
[null,"CAR","Benguet",null,"IX - Zamboanga Peninsula","RIX_divlist",null,"IX - Zamboanga Peninsula","RIX_divlist"]
[null,"CAR","Ifugao",null,"X - Northern Mindanao","RX_divlist",null,"X - Northern Mindanao","RX_divlist"]
[null,"CAR","Kalinga",null,"XI - Davao Region","RXI_divlist",null,"XI - Davao Region","RXI_divlist"]
[null,"CAR","Mt. Province",null,"XII - SOCCSKSARGEN","RXII_divlist",null,"XII - SOCCSKSARGEN","RXII_divlist"]
[null,"CAR","Tabuk City",null,"XIII - CARAGA Region","CARAGA_divlist",null,"XIII - CARAGA Region","CARAGA_divlist"]
[null,"NCR","Caloocan City"]
[null,"NCR","Las Piñas City"]
[null,"NCR","Makati City"]
[null,"NCR","Malabon City"]
[null,"NCR","Mandaluyong City"]
[null,"NCR","Manila"]
[null,"NCR","Marikina City"]
[null,"NCR","Muntinlupa City"]
[null,"NCR","Navotas City"]
[null,"NCR","Parañaque City"]
[null,"NCR","Pasay City"]
[null,"NCR","Pasig City"]
[null,"NCR","Quezon City"]
[null,"NCR","San Juan City"]
[null,"NCR","Taguig City-Pateros"]
[null,"NCR","Valenzuela City"]
[null,"Region I","Alaminos City"]
[null,"Region I","Batac City"]
[null,"Region I","Candon City"]
[null,"Region I","Dagupan City"]
[null,"Region I","Ilocos Norte"]
[null,"Region I","Ilocos Sur"]
[null,"Region I","La Union"]
[null,"Region I","Laoag City"]
[null,"Region I","Pangasinan I"]
[null,"Region I","Pangasinan II"]
[null,"Region I","San Carlos City"]
[null,"Region I","San Fernando City"]
[null,"Region I","Urdaneta City"]
[null,"Region I","Vigan City"]
[null,"Region II","Batanes"]
[null,"Region II","Cagayan"]
[null,"Region II","Cauayan City"]
[null,"Region II","Ilagan City"]
[null,"Region II","Isabela Province"]
[null,"Region II","Nueva Vizcaya"]
[null,"Region II","Quirino"]
[null,"Region II","Santiago City"]
[null,"Region II","Tuguegarao City"]
[null,"Region III","Angeles City"]
[null,"Region III","Aurora"]
[null,"Region III","Balanga City"]
[null,"Region III","Bataan"]
[null,"Region III","Bulacan Province"]
[null,"Region III","Cabanatuan City"]
[null,"Region III","Gapan City"]
[null,"Region III","Mabalacat City"]
[null,"Region III","Malolos City"]
[null,"Region III","Meycauayan"]
[null,"Region III","Nueva Ecija"]
[null,"Region III","Olongapo City"]
[null,"Region III","Pampanga"]
[null,"Region III","San Fernando City"]
[null,"Region III","San Jose City"]
[null,"Region III","San Jose del Monte"]
[null,"Region III","Science City of Muñoz"]
[null,"Region III","Tarlac City"]
[null,"Region III","Tarlac Province"]
[null,"Region III","Zambales"]
[null,"Region IV-A","Antipolo City"]
[null,"Region IV-A","Bacoor City"]
[null,"Region IV-A","Batangas City"]
[null,"Region IV-A","Batangas Province"]
[null,"Region IV-A","Biñan City"]
[null,"Region IV-A","Cabuyao City"]
[null,"Region IV-A","Calamba City"]
[null,"Region IV-A","Cavite City"]
[null,"Region IV-A","Cavite Province"]
[null,"Region IV-A","Dasmariñas City"]
[null,"Region IV-A","General Trias City"]
[null,"Region IV-A","Imus City"]
[null,"Region IV-A","Laguna"]
[null,"Region IV-A","Lipa City"]
[null,"Region IV-A","Lucena City"]
[null,"Region IV-A","Quezon Province"]
[null,"Region IV-A","Rizal"]
[null,"Region IV-A","San Pablo City"]
[null,"Region IV-A","Sta. Rosa City"]
[null,"Region IV-A","Tanauan City"]
[null,"Region IV-A","Tayabas City"]
[null,"Region IV-B","Calapan City"]
[null,"Region IV-B","Marinduque"]
[null,"Region IV-B","Occidental Mindoro"]
[null,"Region IV-B","Oriental Mindoro"]
[null,"Region IV-B","Palawan"]
[null,"Region IV-B","Puerto Princesa"]
[null,"Region IV-B","Romblon"]
[null,"Region V","Albay"]
[null,"Region V","Camarines Norte"]
[null,"Region V","Camarines Sur"]
[null,"Region V","Catanduanes"]
[null,"Region V","Iriga City"]
[null,"Region V","Legazpi City"]
[null,"Region V","Ligao City"]
[null,"Region V","Masbate Province"]
[null,"Region V","Masbate City"]
[null,"Region V","Naga City"]
[null,"Region V","Sorsogon City"]
[null,"Region V","Sorsogon Province"]
[null,"Region V","Tabaco City"]
[null,"Region VI","Aklan"]
[null,"Region VI","Antique"]
[null,"Region VI","Bacolod City"]
[null,"Region VI","Bago City"]
[null,"Region VI","Cadiz City"]
[null,"Region VI","Capiz"]
[null,"Region VI","Escalante City"]
[null,"Region VI","Guimaras"]
[null,"Region VI","Himamaylan City"]
[null,"Region VI","Iloilo City"]
[null,"Region VI","Iloilo Province"]
[null,"Region VI","Kabankalan City"]
[null,"Region VI","La Carlota City"]
[null,"Region VI","Negros Occidental"]
[null,"Region VI","Passi City"]
[null,"Region VI","Roxas City"]
[null,"Region VI","Sagay City"]
[null,"Region VI","San Carlos City"]
[null,"Region VI","Silay City"]
[null,"Region VI","Sipalay City"]
[null,"Region VII","Bais City"]
[null,"Region VII","Bayawan City"]
[null,"Region VII","Bogo City"]
[null,"Region VII","Bohol"]
[null,"Region VII","Carcar City"]
[null,"Region VII","Cebu City"]
[null,"Region VII","Cebu Province"]
[null,"Region VII","Danao"]
[null,"Region VII","Dumaguete City"]
[null,"Region VII","Guihulngan City"]
[null,"Region VII","Lapu-Lapu City "]
[null,"Region VII","Mandaue City"]
[null,"Region VII","Naga City"]
[null,"Region VII","Negros Oriental"]
[null,"Region VII","Siquijor"]
[null,"Region VII","Tagbilaran City"]
[null,"Region VII","Talisay City"]
[null,"Region VII","Tanjay City"]
[null,"Region VII","Toledo City"]
[null,"Region VIII","Baybay City"]
[null,"Region VIII","Biliran"]
[null,"Region VIII","Borongan City"]
[null,"Region VIII","Calbayog City"]
[null,"Region VIII","Catbalogan City"]
[null,"Region VIII","Eastern Samar"]
[null,"Region VIII","Leyte"]
[null,"Region VIII","Maasin City"]
[null,"Region VIII","Northern Samar"]
[null,"Region VIII","Ormoc City"]
[null,"Region VIII","Southern Leyte"]
[null,"Region VIII","Tacloban City"]
[null,"Region VIII","Western Samar"]
[null,"Region IX","Dapitan City"]
[null,"Region IX","Dipolog City"]
[null,"Region IX","Isabela City"]
[null,"Region IX","Pagadian City"]
[null,"Region IX","Zamboanga City"]
[null,"Region IX","Zamboanga del Norte"]
[null,"Region IX","Zamboanga del Sur"]
[null,"Region IX","Zamboanga Sibugay"]
[null,"Region X","Bukidnon"]
[null,"Region X","Cagayan de Oro City"]
[null,"Region X","Camiguin"]
[null,"Region X","El Salvador City"]
[null,"Region X","Gingoog City"]
[null,"Region X","Iligan City"]
[null,"Region X","Lanao Del Norte"]
[null,"Region X","Malaybalay City"]
[null,"Region X","Misamis Occidental"]
[null,"Region X","Misamis oriental"]
[null,"Region X","Oroquieta City"]
[null,"Region X","Ozamis City"]
[null,"Region X","Tangub City"]
[null,"Region X","Valencia City"]
[null,"Region XI","Davao de Oro (Compostela Valley)"]
[null,"Region XI","Davao City"]
[null,"Region XI","Davao del Norte"]
[null,"Region XI","Davao del Sur"]
[null,"Region XI","Davao Occidental"]
[null,"Region XI","Davao Oriental"]
[null,"Region XI","Digos city"]
[null,"Region XI","Mati City"]
[null,"Region XI","Panabo City"]
[null,"Region XI","Samal City"]
[null,"Region XI","Tagum City"]
[null,"Region XII","Cotabato City"]
[null,"Region XII","Cotabato Province"]
[null,"Region XII","General Santos City"]
[null,"Region XII","Kidapawan City"]
[null,"Region XII","Koronadal City"]
[null,"Region XII","Sarangani"]
[null,"Region XII","South Cotabato"]
[null,"Region XII","Sultan Kudarat"]
[null,"Region XII","Tacurong City"]
[null,"Caraga","Agusan del Norte"]
[null,"Caraga","Agusan del Sur"]
[null,"Caraga","Bayugan City"]
[null,"Caraga","Bislig City"]
[null,"Caraga","Butuan"]
[null,"Caraga","Cabadbaran City"]
[null,"Caraga","Dinagat Islands"]
[null,"Caraga","Siargao"]
[null,"Caraga","Surigao City"]
[null,"Caraga","Surigao del Norte"]
[null,"Caraga","Surigao del Sur"]
[null,"Caraga","Tandag City"]